Body Name,Body,Service division categorisation,Expense Type,Date paid,Transaction Reference,Net,Supplier Name,Redacted/Excluded
South Holland District Council,http://statistics.data.gov.uk/id/local-authority/32UF,Environmental Services,Agency Staff,06/03/14,IJ00027234,333.00,247 Personnel Ltd, 
South Holland District Council,http://statistics.data.gov.uk/id/local-authority/32UF,Environmental Services,Agency Staff,06/03/14,IJ00027234,274.50,247 Personnel Ltd, 
South Holland District Council,http://statistics.data.gov.uk/id/local-authority/32UF,Environmental Services,Agency Staff,06/03/14,IJ00027232,88.40,247 Personnel Ltd, 
South Holland District Council,http://statistics.data.gov.uk/id/local-authority/32UF,Environmental Services,Agency Staff,06/03/14,IJ00027232,325.98,247 Personnel Ltd, 
South Holland District Council,http://statistics.data.gov.uk/id/local-authority/32UF,Environmental Services,Agency Staff,06/03/14,IJ00027232,254.15,247 Personnel Ltd, 
South Holland District Council,http://statistics.data.gov.uk/id/local-authority/32UF,Environmental Services,Agency Staff,06/03/14,IJ00027155,938.45,Blue Arrow Ltd, 
South Holland District Council,http://statistics.data.gov.uk/id/local-authority/32UF,Environmental Services,Agency Staff,06/03/14,IJ00027155,2280.09,Blue Arrow Ltd, 
South Holland District Council,http://statistics.data.gov.uk/id/local-authority/32UF,Environmental Services,Agency Staff,06/03/14,IJ00027155,832.30,Blue Arrow Ltd, 
South Holland District Council,http://statistics.data.gov.uk/id/local-authority/32UF,Environmental Services,Agency Staff,06/03/14,IJ00027155,832.30,Blue Arrow Ltd, 
South Holland District Council,http://statistics.data.gov.uk/id/local-authority/32UF,Environmental Services,Agency Staff,06/03/14,IJ00027235,140.84,Blue Arrow Ltd, 
South Holland District Council,http://statistics.data.gov.uk/id/local-authority/32UF,Environmental Services,Agency Staff,06/03/14,IJ00027235,1130.38,Blue Arrow Ltd, 
South Holland District Council,http://statistics.data.gov.uk/id/local-authority/32UF,Environmental Services,Agency Staff,06/03/14,IJ00027235,1212.83,Blue Arrow Ltd, 
South Holland District Council,http://statistics.data.gov.uk/id/local-authority/32UF,Environmental Services,Agency Staff,06/03/14,IJ00027235,147.17,Blue Arrow Ltd, 
South Holland District Council,http://statistics.data.gov.uk/id/local-authority/32UF,ICT and Customer Services,Computer Hardware Maintenance,06/03/14,IJ00027085,701.50,British Telecom Plc, 
South Holland District Council,http://statistics.data.gov.uk/id/local-authority/32UF,Community Development,Postages,06/03/14,IJ00027138,1259.28,Classic Printers, 
South Holland District Council,http://statistics.data.gov.uk/id/local-authority/32UF,Housing,Grants and Contributions to Outside Bodies- No Service Recei,06/03/14,IJ00027195,3365.00,Coda Bulders Ltd, 
South Holland District Council,http://statistics.data.gov.uk/id/local-authority/32UF,Capital,Works to Buildings (main Contractor),06/03/14,IJ00027265,2430.00,Coda Bulders Ltd, 
South Holland District Council,http://statistics.data.gov.uk/id/local-authority/32UF,Capital,Works to Buildings (main Contractor),06/03/14,IJ00027162,2412.00,Gaswise Services Limited, 
South Holland District Council,http://statistics.data.gov.uk/id/local-authority/32UF,Capital,Works to Buildings (main Contractor),06/03/14,IJ00027163,2412.00,Gaswise Services Limited, 
South Holland District Council,http://statistics.data.gov.uk/id/local-authority/32UF,Capital,Works to Buildings (main Contractor),06/03/14,IJ00027164,2412.00,Gaswise Services Limited, 
South Holland District Council,http://statistics.data.gov.uk/id/local-authority/32UF,Housing Landlord Manager,Gas Servicing,06/03/14,IJ00027165,3236.80,Gaswise Services Limited, 
South Holland District Council,http://statistics.data.gov.uk/id/local-authority/32UF,Community Development,Fixtures And Fittings,06/03/14,IJ00027117,927.62,Glen Farrow UK Ltd, 
South Holland District Council,http://statistics.data.gov.uk/id/local-authority/32UF,Community Development,Furniture and Equipment,06/03/14,IJ00026844,1270.00,Hawthorn Theatrical Ltd, 
South Holland District Council,http://statistics.data.gov.uk/id/local-authority/32UF,Housing Landlord Manager,Void Decoration,06/03/14,IJ00027256,1458.33,Homebase Limited, 
South Holland District Council,http://statistics.data.gov.uk/id/local-authority/32UF,Capital,Works to Buildings (main Contractor),06/03/14,IJ00027256,183.33,Homebase Limited, 
South Holland District Council,http://statistics.data.gov.uk/id/local-authority/32UF,Housing Landlord Manager,Agency Staff,06/03/14,IJ00027153,2559.62,Integrity Plus Ltd, 
South Holland District Council,http://statistics.data.gov.uk/id/local-authority/32UF,Housing,Agency Staff,06/03/14,IJ00027153,215.03,Integrity Plus Ltd, 
South Holland District Council,http://statistics.data.gov.uk/id/local-authority/32UF,Housing Landlord Manager,Materials and Consumables,06/03/14,IJ00027156,6554.45,Jackson Building Centres Ltd, 
South Holland District Council,http://statistics.data.gov.uk/id/local-authority/32UF,Housing Landlord Manager,Materials and Consumables,06/03/14,IJ00027156,5148.53,Jackson Building Centres Ltd, 
South Holland District Council,http://statistics.data.gov.uk/id/local-authority/32UF,Housing Landlord Manager,Materials and Consumables,06/03/14,IJ00027156,809.80,Jackson Building Centres Ltd, 
South Holland District Council,http://statistics.data.gov.uk/id/local-authority/32UF,Housing Landlord Manager,Materials and Consumables,06/03/14,IJ00027154,1867.35,Jackson Building Centres Ltd, 
South Holland District Council,http://statistics.data.gov.uk/id/local-authority/32UF,Housing Landlord Manager,Materials and Consumables,06/03/14,IJ00027154,3470.70,Jackson Building Centres Ltd, 
South Holland District Council,http://statistics.data.gov.uk/id/local-authority/32UF,Housing Landlord Manager,Materials and Consumables,06/03/14,IJ00027154,278.96,Jackson Building Centres Ltd, 
South Holland District Council,http://statistics.data.gov.uk/id/local-authority/32UF,Housing Landlord Manager,Materials and Consumables,06/03/14,IJ00027237,2234.74,Jackson Building Centres Ltd, 
South Holland District Council,http://statistics.data.gov.uk/id/local-authority/32UF,Housing Landlord Manager,Materials and Consumables,06/03/14,IJ00027237,9473.15,Jackson Building Centres Ltd, 
South Holland District Council,http://statistics.data.gov.uk/id/local-authority/32UF,Housing Landlord Manager,Materials and Consumables,06/03/14,IJ00027237,638.73,Jackson Building Centres Ltd, 
South Holland District Council,http://statistics.data.gov.uk/id/local-authority/32UF,Housing Landlord Manager,Materials and Consumables,06/03/14,IJ00027236,2660.28,Jackson Building Centres Ltd, 
South Holland District Council,http://statistics.data.gov.uk/id/local-authority/32UF,Housing Landlord Manager,Materials and Consumables,06/03/14,IJ00027236,3810.44,Jackson Building Centres Ltd, 
South Holland District Council,http://statistics.data.gov.uk/id/local-authority/32UF,Housing Landlord Manager,Materials and Consumables,06/03/14,IJ00027236,156.63,Jackson Building Centres Ltd, 
South Holland District Council,http://statistics.data.gov.uk/id/local-authority/32UF,Housing Landlord Manager,Gross Pay,06/03/14,IJ00027188,848.78,James Andrews Recruitment Solutions, 
South Holland District Council,http://statistics.data.gov.uk/id/local-authority/32UF,Community Development,Buildings Maintenance - Responsive,06/03/14,IJ00027106,1972.00,K L Morbey Fencing, 
South Holland District Council,http://statistics.data.gov.uk/id/local-authority/32UF,Planning,Professional & Contractors Fees,06/03/14,IJ00027260,8738.00,Lincolnshire County Council, 
South Holland District Council,http://statistics.data.gov.uk/id/local-authority/32UF,Planning,Grants and Contributions to Outside Bodies- No Service Recei,06/03/14,IJ00027161,6325.00,Lincolnshire Wildlife Trust, 
South Holland District Council,http://statistics.data.gov.uk/id/local-authority/32UF,Building Control,Buildings Maintenance - Programmed,06/03/14,IJ00027168,864.20,Main Street Signs Ltd, 
South Holland District Council,http://statistics.data.gov.uk/id/local-authority/32UF,Democratic Services,Other Miscellaneous Expenses,06/03/14,IJ00027184,500.00,Market House Photography Group, 
South Holland District Council,http://statistics.data.gov.uk/id/local-authority/32UF,Capital,Works to Buildings (main Contractor),06/03/14,IJ00027264,9645.00,M E Goodyear Property Maintenance, 
South Holland District Council,http://statistics.data.gov.uk/id/local-authority/32UF,Housing Landlord Manager,Commercial Vehicle Lease,06/03/14,IJ00027240,520.00,Northgate Vehicle Hire (East Midlands) Ltd, 
South Holland District Council,http://statistics.data.gov.uk/id/local-authority/32UF,Housing Landlord Manager,Commercial Vehicle Lease,06/03/14,IJ00027244,1040.00,Northgate Vehicle Hire (East Midlands) Ltd, 
South Holland District Council,http://statistics.data.gov.uk/id/local-authority/32UF,Environmental Services,Grants and Contributions to Outside Bodies- No Service Recei,06/03/14,IJ00027204,1600.00,Pinchbeck Parish Council, 
South Holland District Council,http://statistics.data.gov.uk/id/local-authority/32UF,Asset and Property,Buildings Maintenance - Responsive,06/03/14,IJ00027133,1924.75,Portable Elec.Testing Services, 
South Holland District Council,http://statistics.data.gov.uk/id/local-authority/32UF,Environmental Services,Professional & Contractors Fees,06/03/14,IJ00027134,3908.89,South Holland Maintenance Ltd, 
South Holland District Council,http://statistics.data.gov.uk/id/local-authority/32UF,Environmental Services,Maintenance of Footpaths and Roadways,06/03/14,IJ00027250,1000.00,South Holland Maintenance Ltd, 
South Holland District Council,http://statistics.data.gov.uk/id/local-authority/32UF,Housing Landlord Manager,Void Repairs,06/03/14,IJ00027210,6175.00,South Holland Maintenance Ltd, 
South Holland District Council,http://statistics.data.gov.uk/id/local-authority/32UF,Capital,Works to Buildings (main Contractor),06/03/14,IJ00027266,1937.00,Stuart Taplin, 
South Holland District Council,http://statistics.data.gov.uk/id/local-authority/32UF,Environmental Services,Agency Staff,06/03/14,IJ00027233,506.88,The Best Connection Group Ltd, 
South Holland District Council,http://statistics.data.gov.uk/id/local-authority/32UF,Environmental Services,Agency Staff,06/03/14,IJ00027233,453.72,The Best Connection Group Ltd, 
South Holland District Council,http://statistics.data.gov.uk/id/local-authority/32UF,Housing Landlord Manager,Subscriptions to Organisations and Other Bodies,06/03/14,IJ00027081,2400.00,Ubm Information Ltd, 
South Holland District Council,http://statistics.data.gov.uk/id/local-authority/32UF,Community Development,Film and Entertainment Costs,06/03/14,IJ00027137,809.38,W M Walton & Company Limited, 
South Holland District Council,http://statistics.data.gov.uk/id/local-authority/32UF,Housing Landlord Manager,Void Repairs,06/03/14,IJ00027209,860.00,Spotless Cleaning, 
South Holland District Council,http://statistics.data.gov.uk/id/local-authority/32UF,Planning,Professional & Contractors Fees,06/03/14,IJ00027172,1000.00,Kind of Digital, 
South Holland District Council,http://statistics.data.gov.uk/id/local-authority/32UF,ICT and Customer Services,Subscriptions to Organisations and Other Bodies,06/03/14,IJ00027147,890.00,Socitm, 
South Holland District Council,http://statistics.data.gov.uk/id/local-authority/32UF,Housing Landlord Manager,Buildings Maintenance - Responsive,06/03/14,IJ00027107,4700.00,B J ROOFING, 
South Holland District Council,http://statistics.data.gov.uk/id/local-authority/32UF,Housing Landlord Manager,Buildings Maintenance - Responsive,06/03/14,IJ00027108,1235.00,B J ROOFING, 
South Holland District Council,http://statistics.data.gov.uk/id/local-authority/32UF,Asset and Property,Other Miscellaneous Expenses,06/03/14,IJ00027248,6684.30,E.on Sustainable Energy, 
South Holland District Council,http://statistics.data.gov.uk/id/local-authority/32UF,Housing Landlord Manager,Buildings Maintenance - Responsive,06/03/14,IJ00027231,550.00,LANDY VENT UK LIMITED, 
South Holland District Council,http://statistics.data.gov.uk/id/local-authority/32UF,Capital,Works to Buildings (main Contractor),06/03/14,IJ00027160,11600.00,MPL HOME IMPROVEMENTS SERVICES LINCS LTD, 
South Holland District Council,http://statistics.data.gov.uk/id/local-authority/32UF,Balance Sheet,VAT Customs and Excise,06/03/14,IJ00027116,163.56,Bristow and Sutor, 
South Holland District Council,http://statistics.data.gov.uk/id/local-authority/32UF,Balance Sheet,VAT Customs and Excise,06/03/14,IJ00027116,24.50,Bristow and Sutor, 
South Holland District Council,http://statistics.data.gov.uk/id/local-authority/32UF,Balance Sheet,VAT Customs and Excise,06/03/14,IJ00027116,341.20,Bristow and Sutor, 
South Holland District Council,http://statistics.data.gov.uk/id/local-authority/32UF,Housing Landlord Manager,Furniture and Equipment,06/03/14,IJ00027185,1801.40,Wrights Flooring and Carpets Ltd, 
South Holland District Council,http://statistics.data.gov.uk/id/local-authority/32UF,Democratic Services,Other Miscellaneous Expenses,06/03/14,IJ00027219,3100.00,Spalding Local Action Group, 
South Holland District Council,http://statistics.data.gov.uk/id/local-authority/32UF,Housing Landlord Manager,Furniture and Equipment,06/03/14,IJ00027122,1584.24,Barclays Asset and Sales Financing, 
South Holland District Council,http://statistics.data.gov.uk/id/local-authority/32UF,Democratic Services,Other Miscellaneous Expenses,06/03/14,IJ00027186,500.00,Sutton Bridge Youth Club, 
South Holland District Council,http://statistics.data.gov.uk/id/local-authority/32UF,Environmental Services,Clothing Uniforms And Laundry,06/03/14,IJ00027119,531.20,Contego Safety Solutions, 
South Holland District Council,http://statistics.data.gov.uk/id/local-authority/32UF,Environmental Services,Clothing Uniforms And Laundry,06/03/14,IJ00027119,47.25,Contego Safety Solutions, 
South Holland District Council,http://statistics.data.gov.uk/id/local-authority/32UF,Environmental Services,Clothing Uniforms And Laundry,06/03/14,IJ00027119,657.88,Contego Safety Solutions, 
South Holland District Council,http://statistics.data.gov.uk/id/local-authority/32UF,Environmental Health,Professional & Contractors Fees,06/03/14,IJ00027115,937.50,Kingsley Hamilton, 
South Holland District Council,http://statistics.data.gov.uk/id/local-authority/32UF,Housing Landlord Manager,Gross Pay,06/03/14,IJ00027259,862.50,Venn Group Limited, 
South Holland District Council,http://statistics.data.gov.uk/id/local-authority/32UF,Democratic Services,Other Miscellaneous Expenses,06/03/14,IJ00027199,1000.00,Holbeach Bank Football Club, 
South Holland District Council,http://statistics.data.gov.uk/id/local-authority/32UF,Democratic Services,Other Miscellaneous Expenses,06/03/14,IJ00027201,911.22,Holbeach Regeneration Community Interest Company, 
South Holland District Council,http://statistics.data.gov.uk/id/local-authority/32UF,ICT and Customer Services,Computer Hardware Maintenance,06/03/14,IJ00027269,995.00,Wifigear Limited, 
South Holland District Council,http://statistics.data.gov.uk/id/local-authority/32UF,Balance Sheet,Current Liabilities Short Term Borrowing,07/03/14,IJ00027286,3181.38,SALIX FINANCE LTD, 
South Holland District Council,http://statistics.data.gov.uk/id/local-authority/32UF,Asset and Property,Agency Staff,13/03/14,IJ00027365,1142.71,5 Star Facility Management, 
South Holland District Council,http://statistics.data.gov.uk/id/local-authority/32UF,HR,Staff Training Expenses,13/03/14,IJ00027427,2434.00,Breckland Council, 
South Holland District Council,http://statistics.data.gov.uk/id/local-authority/32UF,Economic Development,Professional & Contractors Fees,13/03/14,IJ00027499,3203.81,Breckland Council, 
South Holland District Council,http://statistics.data.gov.uk/id/local-authority/32UF,Building Control,License Fees,13/03/14,IJ00027416,564.00,Bsi Membership, 
South Holland District Council,http://statistics.data.gov.uk/id/local-authority/32UF,Environmental Health,Furniture and Equipment,13/03/14,IJ00027370,1857.00,Campbell Associates Ltd, 
South Holland District Council,http://statistics.data.gov.uk/id/local-authority/32UF,Housing Landlord Manager,Sewerage Treatment Works,13/03/14,IJ00027320,20010.18,C.G. Godfrey Ltd, 
South Holland District Council,http://statistics.data.gov.uk/id/local-authority/32UF,Housing Landlord Manager,Sewerage Treatment Works,13/03/14,IJ00027321,804.60,C.G. Godfrey Ltd, 
South Holland District Council,http://statistics.data.gov.uk/id/local-authority/32UF,Housing Landlord Manager,Sewerage Treatment Works,13/03/14,IJ00027390,20010.18,C.G. Godfrey Ltd, 
South Holland District Council,http://statistics.data.gov.uk/id/local-authority/32UF,Housing Landlord Manager,Sewerage Treatment Works,13/03/14,IJ00027394,804.60,C.G. Godfrey Ltd, 
South Holland District Council,http://statistics.data.gov.uk/id/local-authority/32UF,Housing Landlord Manager,Fuel & Oil,13/03/14,IJ00027317,740.80,C H Jones Ltd, 
South Holland District Council,http://statistics.data.gov.uk/id/local-authority/32UF,Environmental Services,Fuel & Oil,13/03/14,IJ00027317,7.19,C H Jones Ltd, 
South Holland District Council,http://statistics.data.gov.uk/id/local-authority/32UF,Environmental Services,Fuel & Oil,13/03/14,IJ00027317,156.29,C H Jones Ltd, 
South Holland District Council,http://statistics.data.gov.uk/id/local-authority/32UF,Environmental Services,Fuel & Oil,13/03/14,IJ00027317,2178.35,C H Jones Ltd, 
South Holland District Council,http://statistics.data.gov.uk/id/local-authority/32UF,Environmental Services,Fuel & Oil,13/03/14,IJ00027317,620.19,C H Jones Ltd, 
South Holland District Council,http://statistics.data.gov.uk/id/local-authority/32UF,Environmental Services,Fuel & Oil,13/03/14,IJ00027317,3089.58,C H Jones Ltd, 
South Holland District Council,http://statistics.data.gov.uk/id/local-authority/32UF,Housing Landlord Manager,Fuel & Oil,13/03/14,IJ00027317,439.69,C H Jones Ltd, 
South Holland District Council,http://statistics.data.gov.uk/id/local-authority/32UF,Housing Landlord Manager,Fuel & Oil,13/03/14,IJ00027317,84.88,C H Jones Ltd, 
South Holland District Council,http://statistics.data.gov.uk/id/local-authority/32UF,Environmental Services,Fuel & Oil,13/03/14,IJ00027317,49.36,C H Jones Ltd, 
South Holland District Council,http://statistics.data.gov.uk/id/local-authority/32UF,Environmental Services,Fuel & Oil,13/03/14,IJ00027317,7.18,C H Jones Ltd, 
South Holland District Council,http://statistics.data.gov.uk/id/local-authority/32UF,Environmental Health,Fuel & Oil,13/03/14,IJ00027317,56.02,C H Jones Ltd, 
South Holland District Council,http://statistics.data.gov.uk/id/local-authority/32UF,Capital,Works to Buildings (main Contractor),13/03/14,IJ00027289,1920.00,Coda Bulders Ltd, 
South Holland District Council,http://statistics.data.gov.uk/id/local-authority/32UF,Capital,Works to Buildings (main Contractor),13/03/14,IJ00027384,4180.00,Coda Bulders Ltd, 
South Holland District Council,http://statistics.data.gov.uk/id/local-authority/32UF,Finance,Compass Point Business Services,13/03/14,IJ00027368,250935.42,Compass Point Business Srvcs (East Coast) Ltd, 
South Holland District Council,http://statistics.data.gov.uk/id/local-authority/32UF,Environmental Services,Maintenance,13/03/14,IJ00027377,4237.41,C P Davidson & Sons Ltd, 
South Holland District Council,http://statistics.data.gov.uk/id/local-authority/32UF,Environmental Services,Maintenance,13/03/14,IJ00027377,6356.10,C P Davidson & Sons Ltd, 
South Holland District Council,http://statistics.data.gov.uk/id/local-authority/32UF,Environmental Services,Maintenance,13/03/14,IJ00027377,6359.67,C P Davidson & Sons Ltd, 
South Holland District Council,http://statistics.data.gov.uk/id/local-authority/32UF,Environmental Services,Maintenance,13/03/14,IJ00027377,159.59,C P Davidson & Sons Ltd, 
South Holland District Council,http://statistics.data.gov.uk/id/local-authority/32UF,Environmental Services,Grants and Contributions to Outside Bodies- No Service Recei,13/03/14,IJ00027354,15000.00,Crowland Parish Council., 
South Holland District Council,http://statistics.data.gov.uk/id/local-authority/32UF,Building Control,Furniture and Equipment,13/03/14,IJ00027398,560.54,Dell Computer Corporation Ltd, 
South Holland District Council,http://statistics.data.gov.uk/id/local-authority/32UF,Environmental Services,Grants and Contributions to Outside Bodies- No Service Recei,13/03/14,IJ00027290,3107.72,Donington Parish Council., 
South Holland District Council,http://statistics.data.gov.uk/id/local-authority/32UF,Democratic Services,Course Fees,13/03/14,IJ00027482,500.00,East Midlands Councils, 
South Holland District Council,http://statistics.data.gov.uk/id/local-authority/32UF,Capital,Works to Buildings (main Contractor),13/03/14,IJ00027298,600.00,Focus Consultants 2010 LLP, 
South Holland District Council,http://statistics.data.gov.uk/id/local-authority/32UF,Capital,Works to Buildings (main Contractor),13/03/14,IJ00027360,152855.00,Foster Property Maintenance Ltd, 
South Holland District Council,http://statistics.data.gov.uk/id/local-authority/32UF,Capital,Works to Buildings (main Contractor),13/03/14,IJ00027361,858.38,Foster Property Maintenance Ltd, 
South Holland District Council,http://statistics.data.gov.uk/id/local-authority/32UF,Community Development,Grants and Contributions to Outside Bodies- No Service Recei,13/03/14,IJ00027472,500.00,Friends Of Ayscoughfee Hall & Gardens Assoc, 
South Holland District Council,http://statistics.data.gov.uk/id/local-authority/32UF,Housing Landlord Manager,Heating Oil,13/03/14,IJ00027507,537.00,GB OILS LTD T AS PACE FUELCARE, 
South Holland District Council,http://statistics.data.gov.uk/id/local-authority/32UF,Community Development,Agency Staff,13/03/14,IJ00027374,1357.50,Gadarch Design Services Ltd, 
South Holland District Council,http://statistics.data.gov.uk/id/local-authority/32UF,Community Development,Agency Staff,13/03/14,IJ00027374,180.00,Gadarch Design Services Ltd, 
South Holland District Council,http://statistics.data.gov.uk/id/local-authority/32UF,Community Development,Agency Staff,13/03/14,IJ00027366,757.50,Gadarch Design Services Ltd, 
South Holland District Council,http://statistics.data.gov.uk/id/local-authority/32UF,Environmental Services,Clothing Uniforms And Laundry,13/03/14,IJ00027329,521.40,Global Safety Ltd, 
South Holland District Council,http://statistics.data.gov.uk/id/local-authority/32UF,Environmental Services,Clothing Uniforms And Laundry,13/03/14,IJ00027329,59.75,Global Safety Ltd, 
South Holland District Council,http://statistics.data.gov.uk/id/local-authority/32UF,Environmental Services,Grounds Maintenance Contract (External),13/03/14,IJ00027344,500.00,Greenscape, 
South Holland District Council,http://statistics.data.gov.uk/id/local-authority/32UF,Environmental Services,Grounds Maintenance Contract (External),13/03/14,IJ00027344,545.00,Greenscape, 
South Holland District Council,http://statistics.data.gov.uk/id/local-authority/32UF,Environmental Services,Grounds Maintenance Contract (External),13/03/14,IJ00027345,1450.00,Greenscape, 
South Holland District Council,http://statistics.data.gov.uk/id/local-authority/32UF,Housing Landlord Manager,Grounds Maintenance Recharge,13/03/14,IJ00027423,795.00,Greenscape, 
South Holland District Council,http://statistics.data.gov.uk/id/local-authority/32UF,Community Development,Fixtures And Fittings,13/03/14,IJ00027489,575.00,Hawthorn Theatrical Ltd, 
South Holland District Council,http://statistics.data.gov.uk/id/local-authority/32UF,Housing Landlord Manager,Void Decoration,13/03/14,IJ00027302,616.67,Homebase Limited, 
South Holland District Council,http://statistics.data.gov.uk/id/local-authority/32UF,Community Development,Furniture and Equipment,13/03/14,IJ00027511,4800.00,Independent Cinema Office, 
South Holland District Council,http://statistics.data.gov.uk/id/local-authority/32UF,Community Development,Furniture and Equipment,13/03/14,IJ00027511,200.00,Independent Cinema Office, 
South Holland District Council,http://statistics.data.gov.uk/id/local-authority/32UF,Environmental Services,Agency Staff,13/03/14,IJ00027316,299.51,Integrity Plus Ltd, 
South Holland District Council,http://statistics.data.gov.uk/id/local-authority/32UF,Environmental Services,Agency Staff,13/03/14,IJ00027316,392.80,Integrity Plus Ltd, 
South Holland District Council,http://statistics.data.gov.uk/id/local-authority/32UF,Housing Landlord Manager,Agency Staff,13/03/14,IJ00027512,3069.08,Integrity Plus Ltd, 
South Holland District Council,http://statistics.data.gov.uk/id/local-authority/32UF,Housing,Agency Staff,13/03/14,IJ00027512,215.04,Integrity Plus Ltd, 
South Holland District Council,http://statistics.data.gov.uk/id/local-authority/32UF,Housing Landlord Manager,Gross Pay,13/03/14,IJ00027508,825.90,James Andrews Recruitment Solutions, 
South Holland District Council,http://statistics.data.gov.uk/id/local-authority/32UF,Housing Landlord Manager,Gross Pay,13/03/14,IJ00027509,848.78,James Andrews Recruitment Solutions, 
South Holland District Council,http://statistics.data.gov.uk/id/local-authority/32UF,Housing Landlord Manager,Gross Pay,13/03/14,IJ00027510,848.78,James Andrews Recruitment Solutions, 
South Holland District Council,http://statistics.data.gov.uk/id/local-authority/32UF,Community Development,Leisure Management,13/03/14,IJ00027440,5458.54,Leisure Connection Ltd, 
South Holland District Council,http://statistics.data.gov.uk/id/local-authority/32UF,Community Development,Leisure Management,13/03/14,IJ00027440,5458.54,Leisure Connection Ltd, 
South Holland District Council,http://statistics.data.gov.uk/id/local-authority/32UF,Finance,Professional & Contractors Fees,13/03/14,IJ00027429,5146.50,Lincolnshire County Council, 
South Holland District Council,http://statistics.data.gov.uk/id/local-authority/32UF,Community Development,Film and Entertainment Costs,13/03/14,IJ00027501,1395.19,Lions Gate Uk Limited, 
South Holland District Council,http://statistics.data.gov.uk/id/local-authority/32UF,Building Control,Buildings Maintenance - Programmed,13/03/14,IJ00027335,572.60,Main Street Signs Ltd, 
South Holland District Council,http://statistics.data.gov.uk/id/local-authority/32UF,Building Control,Buildings Maintenance - Programmed,13/03/14,IJ00027340,974.10,Main Street Signs Ltd, 
South Holland District Council,http://statistics.data.gov.uk/id/local-authority/32UF,Building Control,Buildings Maintenance - Programmed,13/03/14,IJ00027340,36.80,Main Street Signs Ltd, 
South Holland District Council,http://statistics.data.gov.uk/id/local-authority/32UF,Environmental Services,Professional & Contractors Fees,13/03/14,IJ00027387,1080.45,Ocs Group Uk Limited TA Cannon, 
South Holland District Council,http://statistics.data.gov.uk/id/local-authority/32UF,Environmental Services,Furniture and Equipment,13/03/14,IJ00027414,1326.00,Organic Recycling Ltd, 
South Holland District Council,http://statistics.data.gov.uk/id/local-authority/32UF,Community Development,Performers and Entertainers Fees,13/03/14,IJ00027469,1532.67,Picturehouse Entertainment Limited, 
South Holland District Council,http://statistics.data.gov.uk/id/local-authority/32UF,Community Development,Performers and Entertainers Fees,13/03/14,IJ00027496,1898.90,Picturehouse Entertainment Limited, 
South Holland District Council,http://statistics.data.gov.uk/id/local-authority/32UF,Community Development,Performers and Entertainers Fees,13/03/14,IJ00027505,1757.25,Picturehouse Entertainment Limited, 
South Holland District Council,http://statistics.data.gov.uk/id/local-authority/32UF,Democratic Services,Other Miscellaneous Expenses,13/03/14,IJ00027484,1050.00,Pinchbeck Parish Council, 
South Holland District Council,http://statistics.data.gov.uk/id/local-authority/32UF,Environmental Services,Course Fees,13/03/14,IJ00027473,373.50,Playsafety Limited, 
South Holland District Council,http://statistics.data.gov.uk/id/local-authority/32UF,Environmental Services,Course Fees,13/03/14,IJ00027473,175.00,Playsafety Limited, 
South Holland District Council,http://statistics.data.gov.uk/id/local-authority/32UF,Asset and Property,Electricity,13/03/14,IJ00027399,3698.75,Southern Electric, 
South Holland District Council,http://statistics.data.gov.uk/id/local-authority/32UF,Asset and Property,Electricity,13/03/14,IJ00027408,2379.11,Southern Electric, 
South Holland District Council,http://statistics.data.gov.uk/id/local-authority/32UF,Community Development,Electricity,13/03/14,IJ00027442,1988.87,Southern Electric, 
South Holland District Council,http://statistics.data.gov.uk/id/local-authority/32UF,Housing Landlord Manager,Electricity,13/03/14,IJ00027445,1509.59,Southern Electric, 
South Holland District Council,http://statistics.data.gov.uk/id/local-authority/32UF,Housing Landlord Manager,Electricity,13/03/14,IJ00027446,2035.43,Southern Electric, 
South Holland District Council,http://statistics.data.gov.uk/id/local-authority/32UF,Housing Landlord Manager,Electricity,13/03/14,IJ00027450,774.51,Southern Electric, 
South Holland District Council,http://statistics.data.gov.uk/id/local-authority/32UF,Housing Landlord Manager,Buildings Maintenance - Responsive,13/03/14,IJ00027324,663.89,South Holland Internal Drainage Board, 
South Holland District Council,http://statistics.data.gov.uk/id/local-authority/32UF,Housing Landlord Manager,Void Repairs,13/03/14,IJ00027371,920.00,South Holland Maintenance Ltd, 
South Holland District Council,http://statistics.data.gov.uk/id/local-authority/32UF,Capital,Works to Buildings (main Contractor),13/03/14,IJ00027362,43415.00,The Keepmoat Grp t a The Apollo Grp, 
South Holland District Council,http://statistics.data.gov.uk/id/local-authority/32UF,Environmental Services,Agency Staff,13/03/14,IJ00027376,167.16,The Best Connection Group Ltd, 
South Holland District Council,http://statistics.data.gov.uk/id/local-authority/32UF,Environmental Services,Agency Staff,13/03/14,IJ00027376,537.30,The Best Connection Group Ltd, 
South Holland District Council,http://statistics.data.gov.uk/id/local-authority/32UF,Environmental Services,Agency Staff,13/03/14,IJ00027376,154.65,The Best Connection Group Ltd, 
South Holland District Council,http://statistics.data.gov.uk/id/local-authority/32UF,Community Development,Film and Entertainment Costs,13/03/14,IJ00027391,809.38,The Walt Disney Company - Bvi (Uk), 
South Holland District Council,http://statistics.data.gov.uk/id/local-authority/32UF,Capital,Works to Buildings (main Contractor),13/03/14,IJ00027385,2025.00,Tks Of Holbeach, 
South Holland District Council,http://statistics.data.gov.uk/id/local-authority/32UF,Community Development,Buildings Maintenance - Responsive,13/03/14,IJ00027356,1848.00,Tyrrell Contractors Ltd, 
South Holland District Council,http://statistics.data.gov.uk/id/local-authority/32UF,Environmental Services,Maintenance of Footpaths and Roadways,13/03/14,IJ00027357,1400.00,Tyrrell Contractors Ltd, 
South Holland District Council,http://statistics.data.gov.uk/id/local-authority/32UF,Environmental Services,Buildings Maintenance - Responsive,13/03/14,IJ00027460,824.00,Tyrrell Contractors Ltd, 
South Holland District Council,http://statistics.data.gov.uk/id/local-authority/32UF,Housing Landlord Manager,Void Repairs,13/03/14,IJ00027519,1290.00,Spotless Cleaning, 
South Holland District Council,http://statistics.data.gov.uk/id/local-authority/32UF,Collection Fund,Precept- Lincolnshire County Council,13/03/14,IJ00027341,2899286.28,Lincolnshire County Council, 
South Holland District Council,http://statistics.data.gov.uk/id/local-authority/32UF,Collection Fund,Precept - Lincolnshire Police,13/03/14,IJ00027342,473527.29,LOCAL POLICE AUTHORITY FUND ACCOUNT, 
South Holland District Council,http://statistics.data.gov.uk/id/local-authority/32UF,Environmental Services,Professional & Contractors Fees,13/03/14,IJ00027403,10877.67,Sutton Bridge Parish Council, 
South Holland District Council,http://statistics.data.gov.uk/id/local-authority/32UF,Environmental Services,Professional & Contractors Fees,13/03/14,IJ00027490,4645.00,Sutton Bridge Parish Council, 
South Holland District Council,http://statistics.data.gov.uk/id/local-authority/32UF,Building Control,Professional & Contractors Fees,13/03/14,IJ00027318,1150.00,NPS NORTH EAST ANGLIA LTD, 
South Holland District Council,http://statistics.data.gov.uk/id/local-authority/32UF,Building Control,Professional & Contractors Fees,13/03/14,IJ00027319,1380.00,NPS NORTH EAST ANGLIA LTD, 
South Holland District Council,http://statistics.data.gov.uk/id/local-authority/32UF,Building Control,Professional & Contractors Fees,13/03/14,IJ00027476,920.00,NPS NORTH EAST ANGLIA LTD, 
South Holland District Council,http://statistics.data.gov.uk/id/local-authority/32UF,Environmental Services,Commercial Vehicle Lease,13/03/14,IJ00027411,710.65,NORTHRIDGE FINANCE LTD, 
South Holland District Council,http://statistics.data.gov.uk/id/local-authority/32UF,Housing Landlord Manager,Buildings Maintenance - Responsive,13/03/14,IJ00027521,1633.00,LANDY VENT UK LIMITED, 
South Holland District Council,http://statistics.data.gov.uk/id/local-authority/32UF,Capital,Works to Buildings (main Contractor),13/03/14,IJ00027363,1833.33,MPL HOME IMPROVEMENTS SERVICES LINCS LTD, 
South Holland District Council,http://statistics.data.gov.uk/id/local-authority/32UF,Democratic Services,Other Miscellaneous Expenses,13/03/14,IJ00027386,750.00,EVENTS AND ENTERTAINMENT IN LONG SUTTON, 
South Holland District Council,http://statistics.data.gov.uk/id/local-authority/32UF,Environmental Services,Other Communication Costs,13/03/14,IJ00027465,3600.00,Agripa Solutions Limited, 
South Holland District Council,http://statistics.data.gov.uk/id/local-authority/32UF,Environmental Health,Professional & Contractors Fees,13/03/14,IJ00027419,937.50,Kingsley Hamilton, 
South Holland District Council,http://statistics.data.gov.uk/id/local-authority/32UF,Community Development,Leisure Management,13/03/14,IJ00027481,528.37,Leisure in the Community, 
South Holland District Council,http://statistics.data.gov.uk/id/local-authority/32UF,Community Development,Leisure Management,13/03/14,IJ00027481,528.38,Leisure in the Community, 
South Holland District Council,http://statistics.data.gov.uk/id/local-authority/32UF,Capital,Works to Buildings (main Contractor),13/03/14,IJ00027295,9620.00,DMW Environmental Safety Ltd, 
South Holland District Council,http://statistics.data.gov.uk/id/local-authority/32UF,Community Development,Performers and Entertainers Fees,13/03/14,IJ00027451,800.00,Funhouse Comedy, 
South Holland District Council,http://statistics.data.gov.uk/id/local-authority/32UF,Housing Landlord Manager,Gross Pay,13/03/14,IJ00027314,862.50,Venn Group Limited, 
South Holland District Council,http://statistics.data.gov.uk/id/local-authority/32UF,Housing Landlord Manager,Gross Pay,13/03/14,IJ00027315,862.50,Venn Group Limited, 
South Holland District Council,http://statistics.data.gov.uk/id/local-authority/32UF,Housing Landlord Manager,Furniture and Equipment,13/03/14,IJ00027350,540.00,Abel Garage Doors, 
South Holland District Council,http://statistics.data.gov.uk/id/local-authority/32UF,ICT and Customer Services,Computer Hardware Purchase,13/03/14,IJ00027336,1635.00,KRCS Ltd, 
South Holland District Council,http://statistics.data.gov.uk/id/local-authority/32UF,ICT and Customer Services,Computer Hardware Purchase,13/03/14,IJ00027337,965.00,KRCS Ltd, 
South Holland District Council,http://statistics.data.gov.uk/id/local-authority/32UF,Capital,Purchase of Hardware,13/03/14,IJ00027310,20070.00,Computer Power Protection (Sales) Limited, 
South Holland District Council,http://statistics.data.gov.uk/id/local-authority/32UF,Capital,Purchase of Hardware,13/03/14,IJ00027418,4471.00,Computer Power Protection (Sales) Limited, 
South Holland District Council,http://statistics.data.gov.uk/id/local-authority/32UF,Balance Sheet,Long Term Debtors - Other,13/03/14,IJ00027506,6750.00,Hindmarch and Co, 
South Holland District Council,http://statistics.data.gov.uk/id/local-authority/32UF,Community Development,Performers and Entertainers Fees,13/03/14,IJ00027480,750.00,Company Gavin Robertson, 
South Holland District Council,http://statistics.data.gov.uk/id/local-authority/32UF,Democratic Services,Other Miscellaneous Expenses,17/03/14,IJ00027556,824.80,Sutton St James Village Hall, 
South Holland District Council,http://statistics.data.gov.uk/id/local-authority/32UF,Environmental Services,Agency Staff,20/03/14,IJ00027615,320.45,247 Personnel Ltd, 
South Holland District Council,http://statistics.data.gov.uk/id/local-authority/32UF,Environmental Services,Agency Staff,20/03/14,IJ00027615,408.85,247 Personnel Ltd, 
South Holland District Council,http://statistics.data.gov.uk/id/local-authority/32UF,Environmental Services,Agency Staff,20/03/14,IJ00027620,270.00,247 Personnel Ltd, 
South Holland District Council,http://statistics.data.gov.uk/id/local-authority/32UF,Environmental Services,Agency Staff,20/03/14,IJ00027620,67.50,247 Personnel Ltd, 
South Holland District Council,http://statistics.data.gov.uk/id/local-authority/32UF,Environmental Services,Agency Staff,20/03/14,IJ00027620,335.25,247 Personnel Ltd, 
South Holland District Council,http://statistics.data.gov.uk/id/local-authority/32UF,Environmental Services,Agency Staff,20/03/14,IJ00027617,351.75,247 Personnel Ltd, 
South Holland District Council,http://statistics.data.gov.uk/id/local-authority/32UF,Environmental Services,Agency Staff,20/03/14,IJ00027617,58.50,247 Personnel Ltd, 
South Holland District Council,http://statistics.data.gov.uk/id/local-authority/32UF,Environmental Services,Agency Staff,20/03/14,IJ00027617,504.00,247 Personnel Ltd, 
South Holland District Council,http://statistics.data.gov.uk/id/local-authority/32UF,Environmental Services,Agency Staff,20/03/14,IJ00027776,417.12,247 Personnel Ltd, 
South Holland District Council,http://statistics.data.gov.uk/id/local-authority/32UF,Environmental Services,Agency Staff,20/03/14,IJ00027776,408.87,247 Personnel Ltd, 
South Holland District Council,http://statistics.data.gov.uk/id/local-authority/32UF,Environmental Services,Agency Staff,20/03/14,IJ00027780,207.00,247 Personnel Ltd, 
South Holland District Council,http://statistics.data.gov.uk/id/local-authority/32UF,Environmental Services,Agency Staff,20/03/14,IJ00027780,265.50,247 Personnel Ltd, 
South Holland District Council,http://statistics.data.gov.uk/id/local-authority/32UF,Environmental Services,Agency Staff,20/03/14,IJ00027780,67.50,247 Personnel Ltd, 
South Holland District Council,http://statistics.data.gov.uk/id/local-authority/32UF,ICT and Customer Services,Professional & Contractors Fees,20/03/14,IJ00027570,5000.00,Adam Continuity Ltd, 
South Holland District Council,http://statistics.data.gov.uk/id/local-authority/32UF,Housing Landlord Manager,Computer Software Licence Costs,20/03/14,IJ00027680,2406.00,Automico Limited, 
South Holland District Council,http://statistics.data.gov.uk/id/local-authority/32UF,Community Development,Performers and Entertainers Fees,20/03/14,IJ00027664,1660.77,Avalon Promotions Ltd, 
South Holland District Council,http://statistics.data.gov.uk/id/local-authority/32UF,Housing Landlord Manager,Drain Repairs,20/03/14,IJ00027609,5948.00,Bates Environmental Ltd, 
South Holland District Council,http://statistics.data.gov.uk/id/local-authority/32UF,Environmental Services,Agency Staff,20/03/14,IJ00027695,1651.13,Blue Arrow Ltd, 
South Holland District Council,http://statistics.data.gov.uk/id/local-authority/32UF,Environmental Services,Agency Staff,20/03/14,IJ00027695,1172.33,Blue Arrow Ltd, 
South Holland District Council,http://statistics.data.gov.uk/id/local-authority/32UF,Environmental Services,Agency Staff,20/03/14,IJ00027695,147.17,Blue Arrow Ltd, 
South Holland District Council,http://statistics.data.gov.uk/id/local-authority/32UF,Environmental Services,Agency Staff,20/03/14,IJ00027695,193.48,Blue Arrow Ltd, 
South Holland District Council,http://statistics.data.gov.uk/id/local-authority/32UF,Environmental Services,Materials and Consumables,20/03/14,IJ00027655,5792.82,Bpi Recycled Products, 
South Holland District Council,http://statistics.data.gov.uk/id/local-authority/32UF,Environmental Services,Materials and Consumables,20/03/14,IJ00027655,15162.12,Bpi Recycled Products, 
South Holland District Council,http://statistics.data.gov.uk/id/local-authority/32UF,Housing,Other Miscellaneous Expenses,20/03/14,IJ00027728,11039.88,Broadgate Homes Limited, 
South Holland District Council,http://statistics.data.gov.uk/id/local-authority/32UF,Housing,Other Miscellaneous Expenses,20/03/14,IJ00027732,7311.11,Broadgate Homes Limited, 
South Holland District Council,http://statistics.data.gov.uk/id/local-authority/32UF,Housing,Other Miscellaneous Expenses,20/03/14,IJ00027737,5640.60,Broadgate Homes Limited, 
South Holland District Council,http://statistics.data.gov.uk/id/local-authority/32UF,Housing Landlord Manager,Buildings Maintenance - Responsive,20/03/14,IJ00027573,10597.24,C.G. Godfrey Ltd, 
South Holland District Council,http://statistics.data.gov.uk/id/local-authority/32UF,Housing Landlord Manager,Fuel & Oil,20/03/14,IJ00027759,553.22,C H Jones Ltd, 
South Holland District Council,http://statistics.data.gov.uk/id/local-authority/32UF,Environmental Services,Fuel & Oil,20/03/14,IJ00027759,6.29,C H Jones Ltd, 
South Holland District Council,http://statistics.data.gov.uk/id/local-authority/32UF,Environmental Services,Fuel & Oil,20/03/14,IJ00027759,2321.91,C H Jones Ltd, 
South Holland District Council,http://statistics.data.gov.uk/id/local-authority/32UF,Environmental Services,Fuel & Oil,20/03/14,IJ00027759,783.52,C H Jones Ltd, 
South Holland District Council,http://statistics.data.gov.uk/id/local-authority/32UF,Environmental Services,Fuel & Oil,20/03/14,IJ00027759,2987.66,C H Jones Ltd, 
South Holland District Council,http://statistics.data.gov.uk/id/local-authority/32UF,Housing Landlord Manager,Fuel & Oil,20/03/14,IJ00027759,259.87,C H Jones Ltd, 
South Holland District Council,http://statistics.data.gov.uk/id/local-authority/32UF,Environmental Services,Fuel & Oil,20/03/14,IJ00027759,27.32,C H Jones Ltd, 
South Holland District Council,http://statistics.data.gov.uk/id/local-authority/32UF,Environmental Services,Fuel & Oil,20/03/14,IJ00027759,6.28,C H Jones Ltd, 
South Holland District Council,http://statistics.data.gov.uk/id/local-authority/32UF,Environmental Services,Fuel & Oil,20/03/14,IJ00027759,293.40,C H Jones Ltd, 
South Holland District Council,http://statistics.data.gov.uk/id/local-authority/32UF,Environmental Health,Fuel & Oil,20/03/14,IJ00027759,36.13,C H Jones Ltd, 
South Holland District Council,http://statistics.data.gov.uk/id/local-authority/32UF,Environmental Services,Fuel & Oil,20/03/14,IJ00027759,56.44,C H Jones Ltd, 
South Holland District Council,http://statistics.data.gov.uk/id/local-authority/32UF,Community Development,Grants and Contributions- Where a Service is Received,20/03/14,IJ00027628,5132.00,Classic Printers, 
South Holland District Council,http://statistics.data.gov.uk/id/local-authority/32UF,ICT and Customer Services,External Printing and Design Costs,20/03/14,IJ00027777,19239.81,Compass Point Business Srvcs (East Coast) Ltd, 
South Holland District Council,http://statistics.data.gov.uk/id/local-authority/32UF,ICT and Customer Services,Computer Hardware Purchase,20/03/14,IJ00027777,783.09,Compass Point Business Srvcs (East Coast) Ltd, 
South Holland District Council,http://statistics.data.gov.uk/id/local-authority/32UF,Environmental Services,Materials and Consumables,20/03/14,IJ00027563,645.70,Danline International Ltd, 
South Holland District Council,http://statistics.data.gov.uk/id/local-authority/32UF,Capital,Works to Buildings (main Contractor),20/03/14,IJ00027650,35963.10,D Brown (Building Contractors) Ltd, 
South Holland District Council,http://statistics.data.gov.uk/id/local-authority/32UF,ICT and Customer Services,Furniture and Equipment,20/03/14,IJ00027571,9485.38,Dell Computer Corporation Ltd, 
South Holland District Council,http://statistics.data.gov.uk/id/local-authority/32UF,Community Development,Film and Entertainment Costs,20/03/14,IJ00027669,627.38,Entertainment Film Distribution Ltd, 
South Holland District Council,http://statistics.data.gov.uk/id/local-authority/32UF,Community Development,Film and Entertainment Costs,20/03/14,IJ00027665,1998.17,Entertainment One Uk Ltd, 
South Holland District Council,http://statistics.data.gov.uk/id/local-authority/32UF,Asset and Property,Gas,20/03/14,IJ00027566,2366.40,Espo Gas And Electricity, 
South Holland District Council,http://statistics.data.gov.uk/id/local-authority/32UF,Community Development,Gas,20/03/14,IJ00027668,1352.69,Espo Gas And Electricity, 
South Holland District Council,http://statistics.data.gov.uk/id/local-authority/32UF,Housing Landlord Manager,Gas Servicing,20/03/14,IJ00027762,2180.88,Gaswise Services Limited, 
South Holland District Council,http://statistics.data.gov.uk/id/local-authority/32UF,Housing Landlord Manager,Gas Servicing,20/03/14,IJ00027763,58014.43,Gaswise Services Limited, 
South Holland District Council,http://statistics.data.gov.uk/id/local-authority/32UF,Environmental Services,Grounds Maintenance Contract (External),20/03/14,IJ00027781,1645.00,Greenscape, 
South Holland District Council,http://statistics.data.gov.uk/id/local-authority/32UF,Environmental Services,Grounds Maintenance Contract (External),20/03/14,IJ00027782,1245.00,Greenscape, 
South Holland District Council,http://statistics.data.gov.uk/id/local-authority/32UF,Environmental Services,Grounds Maintenance Contract (External),20/03/14,IJ00027783,945.00,Greenscape, 
South Holland District Council,http://statistics.data.gov.uk/id/local-authority/32UF,Community Development,Grounds Maintenance Contract (External),20/03/14,IJ00027783,295.00,Greenscape, 
South Holland District Council,http://statistics.data.gov.uk/id/local-authority/32UF,Environmental Services,Grounds Maintenance Contract (External),20/03/14,IJ00027784,150.00,Greenscape, 
South Holland District Council,http://statistics.data.gov.uk/id/local-authority/32UF,Environmental Services,Grounds Maintenance Contract (External),20/03/14,IJ00027784,1195.00,Greenscape, 
South Holland District Council,http://statistics.data.gov.uk/id/local-authority/32UF,Environmental Services,Grounds Maintenance Contract (External),20/03/14,IJ00027785,795.00,Greenscape, 
South Holland District Council,http://statistics.data.gov.uk/id/local-authority/32UF,Environmental Services,Grounds Maintenance Contract (External),20/03/14,IJ00027773,2070.00,Greenscape, 
South Holland District Council,http://statistics.data.gov.uk/id/local-authority/32UF,Environmental Services,Grounds Maintenance Contract (External),20/03/14,IJ00027773,1325.00,Greenscape, 
South Holland District Council,http://statistics.data.gov.uk/id/local-authority/32UF,Community Development,Other Communication Costs,20/03/14,IJ00027645,790.14,G T S Security, 
South Holland District Council,http://statistics.data.gov.uk/id/local-authority/32UF,Community Development,Other Communication Costs,20/03/14,IJ00027646,1926.19,G T S Security, 
South Holland District Council,http://statistics.data.gov.uk/id/local-authority/32UF,Democratic Services,Other Miscellaneous Expenses,20/03/14,IJ00027742,824.80,Jackson Building Centres Ltd, 
South Holland District Council,http://statistics.data.gov.uk/id/local-authority/32UF,Asset and Property,Buildings Maintenance - Responsive,20/03/14,IJ00027761,300.00,J T Ward Joinery Limited, 
South Holland District Council,http://statistics.data.gov.uk/id/local-authority/32UF,Asset and Property,Buildings Maintenance - Programmed,20/03/14,IJ00027761,3500.00,J T Ward Joinery Limited, 
South Holland District Council,http://statistics.data.gov.uk/id/local-authority/32UF,Housing Landlord Manager,Other Miscellaneous Expenses,20/03/14,IJ00027682,871.50,Lincolnshire County Council, 
South Holland District Council,http://statistics.data.gov.uk/id/local-authority/32UF,Democratic Services,Other Miscellaneous Expenses,20/03/14,IJ00027559,500.00,Long Sutton Community Led Plan Steering Group, 
South Holland District Council,http://statistics.data.gov.uk/id/local-authority/32UF,Capital,Works to Buildings (main Contractor),20/03/14,IJ00027555,10003.00,Maples Solicitors, 
South Holland District Council,http://statistics.data.gov.uk/id/local-authority/32UF,Environmental Services,Buildings Maintenance - Responsive,20/03/14,IJ00027013,1615.64,Medway Galvanising Co Ltd, 
South Holland District Council,http://statistics.data.gov.uk/id/local-authority/32UF,Housing Landlord Manager,Void Repairs,20/03/14,IJ00027747,212.90,M & R Glass & Glazing Ltd, 
South Holland District Council,http://statistics.data.gov.uk/id/local-authority/32UF,Housing Landlord Manager,Buildings Maintenance - Responsive,20/03/14,IJ00027747,1302.60,M & R Glass & Glazing Ltd, 
South Holland District Council,http://statistics.data.gov.uk/id/local-authority/32UF,Housing Landlord Manager,Void Repairs,20/03/14,IJ00027755,98.40,M & R Glass & Glazing Ltd, 
South Holland District Council,http://statistics.data.gov.uk/id/local-authority/32UF,Housing Landlord Manager,Buildings Maintenance - Responsive,20/03/14,IJ00027755,2888.70,M & R Glass & Glazing Ltd, 
South Holland District Council,http://statistics.data.gov.uk/id/local-authority/32UF,Housing Landlord Manager,Buildings Maintenance - Responsive,20/03/14,IJ00027702,3610.70,M & R Glass & Glazing Ltd, 
South Holland District Council,http://statistics.data.gov.uk/id/local-authority/32UF,Housing Landlord Manager,Commercial Vehicle Lease,20/03/14,IJ00027686,1025.57,Northgate Vehicle Hire (East Midlands) Ltd, 
South Holland District Council,http://statistics.data.gov.uk/id/local-authority/32UF,Community Development,Performers and Entertainers Fees,20/03/14,IJ00027670,1790.94,Picturehouse Entertainment Limited, 
South Holland District Council,http://statistics.data.gov.uk/id/local-authority/32UF,Community Development,Performers and Entertainers Fees,20/03/14,IJ00027671,1902.54,Picturehouse Entertainment Limited, 
South Holland District Council,http://statistics.data.gov.uk/id/local-authority/32UF,Planning,Grants and Contributions to Outside Bodies- No Service Recei,20/03/14,IJ00027598,1750.00,Plann.It Limited, 
South Holland District Council,http://statistics.data.gov.uk/id/local-authority/32UF,Housing Landlord Manager,Materials and Consumables,20/03/14,IJ00027706,568.30,Rexel Uk Ltd, 
South Holland District Council,http://statistics.data.gov.uk/id/local-authority/32UF,Environmental Services,Grants and Contributions- Where a Service is Received,20/03/14,IJ00027560,1176.00,Rigby Taylor Limited, 
South Holland District Council,http://statistics.data.gov.uk/id/local-authority/32UF,Environmental Services,Materials and Consumables,20/03/14,IJ00027675,2016.00,Rigby Taylor Limited, 
South Holland District Council,http://statistics.data.gov.uk/id/local-authority/32UF,Housing,Grants and Contributions to Outside Bodies- No Service Recei,20/03/14,IJ00027730,19600.00,S.Holland Citizens Advice Bureau, 
South Holland District Council,http://statistics.data.gov.uk/id/local-authority/32UF,Housing Landlord Manager,Electricity,20/03/14,IJ00027593,60.77,Southern Electric, 
South Holland District Council,http://statistics.data.gov.uk/id/local-authority/32UF,Housing Landlord Manager,Electricity,20/03/14,IJ00027593,47.98,Southern Electric, 
South Holland District Council,http://statistics.data.gov.uk/id/local-authority/32UF,Housing Landlord Manager,Electricity,20/03/14,IJ00027593,3103.13,Southern Electric, 
South Holland District Council,http://statistics.data.gov.uk/id/local-authority/32UF,Housing Landlord Manager,Electricity,20/03/14,IJ00027593,470.82,Southern Electric, 
South Holland District Council,http://statistics.data.gov.uk/id/local-authority/32UF,Environmental Services,Electricity,20/03/14,IJ00027593,46.85,Southern Electric, 
South Holland District Council,http://statistics.data.gov.uk/id/local-authority/32UF,Environmental Services,Electricity,20/03/14,IJ00027593,79.22,Southern Electric, 
South Holland District Council,http://statistics.data.gov.uk/id/local-authority/32UF,Housing Landlord Manager,Electricity,20/03/14,IJ00027593,197.28,Southern Electric, 
South Holland District Council,http://statistics.data.gov.uk/id/local-authority/32UF,Housing Landlord Manager,Electricity,20/03/14,IJ00027593,390.20,Southern Electric, 
South Holland District Council,http://statistics.data.gov.uk/id/local-authority/32UF,Housing Landlord Manager,Electricity,20/03/14,IJ00027593,56.02,Southern Electric, 
South Holland District Council,http://statistics.data.gov.uk/id/local-authority/32UF,Housing Landlord Manager,Electricity,20/03/14,IJ00027593,262.04,Southern Electric, 
South Holland District Council,http://statistics.data.gov.uk/id/local-authority/32UF,Housing Landlord Manager,Electricity,20/03/14,IJ00027593,97.37,Southern Electric, 
South Holland District Council,http://statistics.data.gov.uk/id/local-authority/32UF,Housing Landlord Manager,Electricity,20/03/14,IJ00027593,71.18,Southern Electric, 
South Holland District Council,http://statistics.data.gov.uk/id/local-authority/32UF,Housing Landlord Manager,Electricity,20/03/14,IJ00027593,82.90,Southern Electric, 
South Holland District Council,http://statistics.data.gov.uk/id/local-authority/32UF,Housing Landlord Manager,Electricity,20/03/14,IJ00027593,96.52,Southern Electric, 
South Holland District Council,http://statistics.data.gov.uk/id/local-authority/32UF,Housing Landlord Manager,Electricity,20/03/14,IJ00027593,611.95,Southern Electric, 
South Holland District Council,http://statistics.data.gov.uk/id/local-authority/32UF,Housing Landlord Manager,Electricity,20/03/14,IJ00027593,23.63,Southern Electric, 
South Holland District Council,http://statistics.data.gov.uk/id/local-authority/32UF,Housing Landlord Manager,Electricity,20/03/14,IJ00027593,24.88,Southern Electric, 
South Holland District Council,http://statistics.data.gov.uk/id/local-authority/32UF,Environmental Services,Electricity,20/03/14,IJ00027593,337.40,Southern Electric, 
South Holland District Council,http://statistics.data.gov.uk/id/local-authority/32UF,Environmental Services,Electricity,20/03/14,IJ00027593,40.04,Southern Electric, 
South Holland District Council,http://statistics.data.gov.uk/id/local-authority/32UF,Environmental Services,Electricity,20/03/14,IJ00027593,125.73,Southern Electric, 
South Holland District Council,http://statistics.data.gov.uk/id/local-authority/32UF,Housing Landlord Manager,Electricity,20/03/14,IJ00027593,8.96,Southern Electric, 
South Holland District Council,http://statistics.data.gov.uk/id/local-authority/32UF,Community Development,Electricity,20/03/14,IJ00027593,406.21,Southern Electric, 
South Holland District Council,http://statistics.data.gov.uk/id/local-authority/32UF,Environmental Services,Grants and Contributions to Outside Bodies- No Service Recei,20/03/14,IJ00027771,500.00,South Holland Maintenance Ltd, 
South Holland District Council,http://statistics.data.gov.uk/id/local-authority/32UF,Community Development,Grants and Contributions to Outside Bodies- No Service Recei,20/03/14,IJ00027770,6632.50,Sth Lincolnshire Community Voluntary Service, 
South Holland District Council,http://statistics.data.gov.uk/id/local-authority/32UF,Environmental Services,Agency Staff,20/03/14,IJ00027753,883.57,The Best Connection Group Ltd, 
South Holland District Council,http://statistics.data.gov.uk/id/local-authority/32UF,Environmental Services,Agency Staff,20/03/14,IJ00027753,65.10,The Best Connection Group Ltd, 
South Holland District Council,http://statistics.data.gov.uk/id/local-authority/32UF,Housing Landlord Manager,Materials and Consumables,20/03/14,IJ00027694,720.00,Trent Fireplaces, 
South Holland District Council,http://statistics.data.gov.uk/id/local-authority/32UF,Housing Landlord Manager,Materials and Consumables,20/03/14,IJ00027694,980.00,Trent Fireplaces, 
South Holland District Council,http://statistics.data.gov.uk/id/local-authority/32UF,ICT and Customer Services,Computer Hardware Purchase,20/03/14,IJ00027574,19800.00,Hewlett Packard Ltd, 
South Holland District Council,http://statistics.data.gov.uk/id/local-authority/32UF,Housing,Other Miscellaneous Expenses,20/03/14,IJ00027735,27854.20,Broadgate Builders (Spalding) Ltd, 
South Holland District Council,http://statistics.data.gov.uk/id/local-authority/32UF,Environmental Services,Grants and Contributions- Where a Service is Received,20/03/14,IJ00027760,2747.40,Broxap Ltd, 
South Holland District Council,http://statistics.data.gov.uk/id/local-authority/32UF,Housing,Grants and Contributions to Outside Bodies- No Service Recei,20/03/14,IJ00027586,842.80,PYRAMID HOME IMPROVEMENTS, 
South Holland District Council,http://statistics.data.gov.uk/id/local-authority/32UF,Environmental Services,Course Fees,20/03/14,IJ00027757,647.14,Pristine Condition Ltd, 
South Holland District Council,http://statistics.data.gov.uk/id/local-authority/32UF,Building Control,Professional & Contractors Fees,20/03/14,IJ00027779,900.00,NPS NORTH EAST ANGLIA LTD, 
South Holland District Council,http://statistics.data.gov.uk/id/local-authority/32UF,Economic Development,Professional & Contractors Fees,20/03/14,IJ00027577,2500.00,BARKER STOREY MATTHEWS, 
South Holland District Council,http://statistics.data.gov.uk/id/local-authority/32UF,Finance,Postages,20/03/14,IJ00027786,10000.00,NEOPOST LIMITED, 
South Holland District Council,http://statistics.data.gov.uk/id/local-authority/32UF,Capital,Works to Buildings (main Contractor),20/03/14,IJ00027584,900.00,MPL HOME IMPROVEMENTS SERVICES LINCS LTD, 
South Holland District Council,http://statistics.data.gov.uk/id/local-authority/32UF,Capital,Works to Buildings (main Contractor),20/03/14,IJ00027575,1658.00,MPL HOME IMPROVEMENTS SERVICES LINCS LTD, 
South Holland District Council,http://statistics.data.gov.uk/id/local-authority/32UF,Community Development,Grants and Contributions- Where a Service is Received,20/03/14,IJ00027768,1350.00,Cook Connect Ltd, 
South Holland District Council,http://statistics.data.gov.uk/id/local-authority/32UF,Housing Landlord Manager,Furniture and Equipment,20/03/14,IJ00027752,881.95,Hilti GB Ltd, 
South Holland District Council,http://statistics.data.gov.uk/id/local-authority/32UF,Housing Landlord Manager,Furniture and Equipment,20/03/14,IJ00027752,709.95,Hilti GB Ltd, 
South Holland District Council,http://statistics.data.gov.uk/id/local-authority/32UF,Capital,"Purchase of Plant, Machinery & Equipment",20/03/14,IJ00027701,1364.00,East Kirkby Engineering Co Ltd, 
South Holland District Council,http://statistics.data.gov.uk/id/local-authority/32UF,Community Development,Performers and Entertainers Fees,20/03/14,IJ00027662,2365.09,Sympathetic Developments, 
South Holland District Council,http://statistics.data.gov.uk/id/local-authority/32UF,Housing,Other Miscellaneous Expenses,20/03/14,IJ00027769,3926.56,South Holland Homes, 
South Holland District Council,http://statistics.data.gov.uk/id/local-authority/32UF,Housing Landlord Manager,Void Repairs,20/03/14,IJ00027690,6797.09,M Yould Plumbing and Heating Ltd, 
South Holland District Council,http://statistics.data.gov.uk/id/local-authority/32UF,Housing Landlord Manager,Void Repairs,20/03/14,IJ00027673,3600.00,M Yould Plumbing and Heating Ltd, 
South Holland District Council,http://statistics.data.gov.uk/id/local-authority/32UF,Housing Landlord Manager,Void Repairs,20/03/14,IJ00027676,3600.00,M Yould Plumbing and Heating Ltd, 
South Holland District Council,http://statistics.data.gov.uk/id/local-authority/32UF,Housing Landlord Manager,Void Repairs,20/03/14,IJ00027692,2400.00,M Yould Plumbing and Heating Ltd, 
South Holland District Council,http://statistics.data.gov.uk/id/local-authority/32UF,Housing Landlord Manager,Void Repairs,20/03/14,IJ00027693,4200.00,M Yould Plumbing and Heating Ltd, 
South Holland District Council,http://statistics.data.gov.uk/id/local-authority/32UF,Housing Landlord Manager,Void Repairs,20/03/14,IJ00027696,1800.00,M Yould Plumbing and Heating Ltd, 
South Holland District Council,http://statistics.data.gov.uk/id/local-authority/32UF,Housing Landlord Manager,Void Repairs,20/03/14,IJ00027697,1800.00,M Yould Plumbing and Heating Ltd, 
South Holland District Council,http://statistics.data.gov.uk/id/local-authority/32UF,Housing Landlord Manager,Void Repairs,20/03/14,IJ00027698,1800.00,M Yould Plumbing and Heating Ltd, 
South Holland District Council,http://statistics.data.gov.uk/id/local-authority/32UF,Housing Landlord Manager,Void Repairs,20/03/14,IJ00027699,600.00,M Yould Plumbing and Heating Ltd, 
South Holland District Council,http://statistics.data.gov.uk/id/local-authority/32UF,Housing Landlord Manager,Void Repairs,20/03/14,IJ00027700,6089.24,M Yould Plumbing and Heating Ltd, 
South Holland District Council,http://statistics.data.gov.uk/id/local-authority/32UF,Housing,Grants and Contributions to Outside Bodies- No Service Recei,20/03/14,IJ00027585,2185.00,Belmont, 
South Holland District Council,http://statistics.data.gov.uk/id/local-authority/32UF,Capital,Works to Buildings (main Contractor),20/03/14,IJ00027528,2600.40,1st Choice Insulations Ltd, 
South Holland District Council,http://statistics.data.gov.uk/id/local-authority/32UF,Housing Landlord Manager,External Painting Repairs,20/03/14,IJ00027591,1794.00,Novus Property Solutions Ltd, 
South Holland District Council,http://statistics.data.gov.uk/id/local-authority/32UF,Environmental Health,Professional & Contractors Fees,20/03/14,IJ00027626,937.50,Kingsley Hamilton, 
South Holland District Council,http://statistics.data.gov.uk/id/local-authority/32UF,Capital,"Purchase of Plant, Machinery & Equipment",20/03/14,IJ00027634,128435.00,Dennis Eagle, 
South Holland District Council,http://statistics.data.gov.uk/id/local-authority/32UF,Capital,"Purchase of Plant, Machinery & Equipment",20/03/14,IJ00027635,128435.00,Dennis Eagle, 
South Holland District Council,http://statistics.data.gov.uk/id/local-authority/32UF,Capital,"Purchase of Plant, Machinery & Equipment",20/03/14,IJ00027636,128435.00,Dennis Eagle, 
South Holland District Council,http://statistics.data.gov.uk/id/local-authority/32UF,Housing Landlord Manager,Buildings Maintenance - Responsive,20/03/14,IJ00027651,837.50,Justin Doughty, 
South Holland District Council,http://statistics.data.gov.uk/id/local-authority/32UF,Housing Landlord Manager,Void Repairs,20/03/14,IJ00027624,2677.00,Response Construction Maintenance Limited, 
South Holland District Council,http://statistics.data.gov.uk/id/local-authority/32UF,Housing Landlord Manager,Void Repairs,20/03/14,IJ00027621,3206.41,Response Construction Maintenance Limited, 
South Holland District Council,http://statistics.data.gov.uk/id/local-authority/32UF,Housing Landlord Manager,Void Repairs,20/03/14,IJ00027714,3100.94,Response Construction Maintenance Limited, 
South Holland District Council,http://statistics.data.gov.uk/id/local-authority/32UF,Housing Landlord Manager,Void Repairs,20/03/14,IJ00027745,2582.02,Response Construction Maintenance Limited, 
South Holland District Council,http://statistics.data.gov.uk/id/local-authority/32UF,Capital,Works to Buildings (main Contractor),20/03/14,IJ00027576,156819.00,Willmott Dixon Partnerships Ltd, 
South Holland District Council,http://statistics.data.gov.uk/id/local-authority/32UF,Housing Landlord Manager,Gross Pay,20/03/14,IJ00027612,862.50,Venn Group Limited, 
South Holland District Council,http://statistics.data.gov.uk/id/local-authority/32UF,Planning,Professional & Contractors Fees,20/03/14,IJ00027778,724.38,CDI AndersElite Ltd, 
South Holland District Council,http://statistics.data.gov.uk/id/local-authority/32UF,Community Development,Other Miscellaneous Expenses,21/03/14,IJ00027847,52411.35,Leisure In The Community Ltd, 
South Holland District Council,http://statistics.data.gov.uk/id/local-authority/32UF,Environmental Services,Course Fees,21/03/14,IJ00027802,647.14,Pristine Condition Ltd, 
South Holland District Council,http://statistics.data.gov.uk/id/local-authority/32UF,Environmental Services,Agency Staff,27/03/14,IJ00028008,391.50,247 Personnel Ltd, 
South Holland District Council,http://statistics.data.gov.uk/id/local-authority/32UF,Environmental Services,Agency Staff,27/03/14,IJ00028008,72.00,247 Personnel Ltd, 
South Holland District Council,http://statistics.data.gov.uk/id/local-authority/32UF,Environmental Services,Agency Staff,27/03/14,IJ00028008,202.50,247 Personnel Ltd, 
South Holland District Council,http://statistics.data.gov.uk/id/local-authority/32UF,Environmental Services,Agency Staff,27/03/14,IJ00028011,408.85,247 Personnel Ltd, 
South Holland District Council,http://statistics.data.gov.uk/id/local-authority/32UF,Environmental Services,Agency Staff,27/03/14,IJ00028011,408.85,247 Personnel Ltd, 
South Holland District Council,http://statistics.data.gov.uk/id/local-authority/32UF,Environmental Services,Agency Staff,27/03/14,IJ00028005,297.49,Blue Arrow Ltd, 
South Holland District Council,http://statistics.data.gov.uk/id/local-authority/32UF,Environmental Services,Agency Staff,27/03/14,IJ00028005,1434.84,Blue Arrow Ltd, 
South Holland District Council,http://statistics.data.gov.uk/id/local-authority/32UF,Environmental Services,Agency Staff,27/03/14,IJ00028005,1212.83,Blue Arrow Ltd, 
South Holland District Council,http://statistics.data.gov.uk/id/local-authority/32UF,Environmental Services,Agency Staff,27/03/14,IJ00028005,76.12,Blue Arrow Ltd, 
South Holland District Council,http://statistics.data.gov.uk/id/local-authority/32UF,Environmental Services,Agency Staff,27/03/14,IJ00028007,1509.02,Blue Arrow Ltd, 
South Holland District Council,http://statistics.data.gov.uk/id/local-authority/32UF,Environmental Services,Agency Staff,27/03/14,IJ00028007,1126.65,Blue Arrow Ltd, 
South Holland District Council,http://statistics.data.gov.uk/id/local-authority/32UF,Environmental Services,Agency Staff,27/03/14,IJ00028007,203.00,Blue Arrow Ltd, 
South Holland District Council,http://statistics.data.gov.uk/id/local-authority/32UF,Environmental Services,Agency Staff,27/03/14,IJ00028007,96.74,Blue Arrow Ltd, 
South Holland District Council,http://statistics.data.gov.uk/id/local-authority/32UF,Environmental Services,Materials and Consumables,27/03/14,IJ00028099,11585.58,Bpi Recycled Products, 
South Holland District Council,http://statistics.data.gov.uk/id/local-authority/32UF,Community Development,Gas,27/03/14,IJ00028081,974.41,British Gas Business, 
South Holland District Council,http://statistics.data.gov.uk/id/local-authority/32UF,Finance,Telephones,27/03/14,IJ00028046,5601.24,British Telecom Plc, 
South Holland District Council,http://statistics.data.gov.uk/id/local-authority/32UF,Building Control,Buildings Maintenance - Programmed,27/03/14,IJ00027903,715.00,Brooks (Spalding) Ltd, 
South Holland District Council,http://statistics.data.gov.uk/id/local-authority/32UF,Building Control,Buildings Maintenance - Programmed,27/03/14,IJ00027904,845.00,Brooks (Spalding) Ltd, 
South Holland District Council,http://statistics.data.gov.uk/id/local-authority/32UF,Building Control,Buildings Maintenance - Programmed,27/03/14,IJ00027905,845.00,Brooks (Spalding) Ltd, 
South Holland District Council,http://statistics.data.gov.uk/id/local-authority/32UF,Building Control,Buildings Maintenance - Programmed,27/03/14,IJ00027906,780.00,Brooks (Spalding) Ltd, 
South Holland District Council,http://statistics.data.gov.uk/id/local-authority/32UF,Building Control,Buildings Maintenance - Programmed,27/03/14,IJ00027908,845.00,Brooks (Spalding) Ltd, 
South Holland District Council,http://statistics.data.gov.uk/id/local-authority/32UF,Building Control,Buildings Maintenance - Programmed,27/03/14,IJ00027909,845.00,Brooks (Spalding) Ltd, 
South Holland District Council,http://statistics.data.gov.uk/id/local-authority/32UF,Building Control,Buildings Maintenance - Programmed,27/03/14,IJ00027910,650.00,Brooks (Spalding) Ltd, 
South Holland District Council,http://statistics.data.gov.uk/id/local-authority/32UF,Building Control,Buildings Maintenance - Programmed,27/03/14,IJ00027911,2015.00,Brooks (Spalding) Ltd, 
South Holland District Council,http://statistics.data.gov.uk/id/local-authority/32UF,ICT and Customer Services,Computer Software Licence Costs,27/03/14,IJ00028106,18801.30,Capita Business Services Ltd, 
South Holland District Council,http://statistics.data.gov.uk/id/local-authority/32UF,Finance,Professional & Contractors Fees,27/03/14,IJ00028116,647.68,Capita Business Services Ltd, 
South Holland District Council,http://statistics.data.gov.uk/id/local-authority/32UF,Housing Landlord Manager,Sewerage Treatment Works,27/03/14,IJ00027810,5418.00,C.G. Godfrey Ltd, 
South Holland District Council,http://statistics.data.gov.uk/id/local-authority/32UF,Housing Landlord Manager,Buildings Maintenance - Responsive,27/03/14,IJ00027811,1526.87,C.G. Godfrey Ltd, 
South Holland District Council,http://statistics.data.gov.uk/id/local-authority/32UF,Balance Sheet,Payroll-Attachment Of Earnings,27/03/14,IJ00028029,531.81,Child Support Agency, 
South Holland District Council,http://statistics.data.gov.uk/id/local-authority/32UF,Housing Landlord Manager,Fuel & Oil,27/03/14,IJ00027851,510.06,C H Jones Ltd, 
South Holland District Council,http://statistics.data.gov.uk/id/local-authority/32UF,Environmental Services,Fuel & Oil,27/03/14,IJ00027851,6.31,C H Jones Ltd, 
South Holland District Council,http://statistics.data.gov.uk/id/local-authority/32UF,Environmental Services,Fuel & Oil,27/03/14,IJ00027851,1843.14,C H Jones Ltd, 
South Holland District Council,http://statistics.data.gov.uk/id/local-authority/32UF,Environmental Services,Fuel & Oil,27/03/14,IJ00027851,611.13,C H Jones Ltd, 
South Holland District Council,http://statistics.data.gov.uk/id/local-authority/32UF,Environmental Services,Fuel & Oil,27/03/14,IJ00027851,3661.50,C H Jones Ltd, 
South Holland District Council,http://statistics.data.gov.uk/id/local-authority/32UF,Housing Landlord Manager,Fuel & Oil,27/03/14,IJ00027851,324.58,C H Jones Ltd, 
South Holland District Council,http://statistics.data.gov.uk/id/local-authority/32UF,Environmental Services,Fuel & Oil,27/03/14,IJ00027851,26.46,C H Jones Ltd, 
South Holland District Council,http://statistics.data.gov.uk/id/local-authority/32UF,Environmental Services,Fuel & Oil,27/03/14,IJ00027851,6.31,C H Jones Ltd, 
South Holland District Council,http://statistics.data.gov.uk/id/local-authority/32UF,Environmental Services,Fuel & Oil,27/03/14,IJ00027851,120.49,C H Jones Ltd, 
South Holland District Council,http://statistics.data.gov.uk/id/local-authority/32UF,Environmental Health,Fuel & Oil,27/03/14,IJ00027851,54.79,C H Jones Ltd, 
South Holland District Council,http://statistics.data.gov.uk/id/local-authority/32UF,Environmental Services,Fuel & Oil,27/03/14,IJ00027851,67.29,C H Jones Ltd, 
South Holland District Council,http://statistics.data.gov.uk/id/local-authority/32UF,Housing Landlord Manager,Fuel & Oil,27/03/14,IJ00027948,440.30,C H Jones Ltd, 
South Holland District Council,http://statistics.data.gov.uk/id/local-authority/32UF,Environmental Services,Fuel & Oil,27/03/14,IJ00027948,6.00,C H Jones Ltd, 
South Holland District Council,http://statistics.data.gov.uk/id/local-authority/32UF,Environmental Services,Fuel & Oil,27/03/14,IJ00027948,2171.38,C H Jones Ltd, 
South Holland District Council,http://statistics.data.gov.uk/id/local-authority/32UF,Environmental Services,Fuel & Oil,27/03/14,IJ00027948,607.06,C H Jones Ltd, 
South Holland District Council,http://statistics.data.gov.uk/id/local-authority/32UF,Environmental Services,Fuel & Oil,27/03/14,IJ00027948,2669.78,C H Jones Ltd, 
South Holland District Council,http://statistics.data.gov.uk/id/local-authority/32UF,Housing Landlord Manager,Fuel & Oil,27/03/14,IJ00027948,273.52,C H Jones Ltd, 
South Holland District Council,http://statistics.data.gov.uk/id/local-authority/32UF,Housing Landlord Manager,Fuel & Oil,27/03/14,IJ00027948,68.52,C H Jones Ltd, 
South Holland District Council,http://statistics.data.gov.uk/id/local-authority/32UF,Environmental Services,Fuel & Oil,27/03/14,IJ00027948,26.56,C H Jones Ltd, 
South Holland District Council,http://statistics.data.gov.uk/id/local-authority/32UF,Environmental Services,Fuel & Oil,27/03/14,IJ00027948,6.00,C H Jones Ltd, 
South Holland District Council,http://statistics.data.gov.uk/id/local-authority/32UF,Environmental Services,Fuel & Oil,27/03/14,IJ00027948,260.33,C H Jones Ltd, 
South Holland District Council,http://statistics.data.gov.uk/id/local-authority/32UF,Environmental Services,Fuel & Oil,27/03/14,IJ00027948,129.09,C H Jones Ltd, 
South Holland District Council,http://statistics.data.gov.uk/id/local-authority/32UF,Environmental Health,Professional & Contractors Fees,27/03/14,IJ00027822,600.00,Civica Limited, 
South Holland District Council,http://statistics.data.gov.uk/id/local-authority/32UF,ICT and Customer Services,Computer Software Licence Costs,27/03/14,IJ00027934,7526.72,Civica Limited, 
South Holland District Council,http://statistics.data.gov.uk/id/local-authority/32UF,Environmental Health,Other Miscellaneous Expenses,27/03/14,IJ00028003,9600.00,Civica Limited, 
South Holland District Council,http://statistics.data.gov.uk/id/local-authority/32UF,ICT and Customer Services,External Printing and Design Costs,27/03/14,IJ00027914,5366.53,Compass Point Business Srvcs (East Coast) Ltd, 
South Holland District Council,http://statistics.data.gov.uk/id/local-authority/32UF,ICT and Customer Services,Computer Hardware Purchase,27/03/14,IJ00027914,3149.11,Compass Point Business Srvcs (East Coast) Ltd, 
South Holland District Council,http://statistics.data.gov.uk/id/local-authority/32UF,Democratic Services,Other Miscellaneous Expenses,27/03/14,IJ00028039,759.00,Crowland Parish Council., 
South Holland District Council,http://statistics.data.gov.uk/id/local-authority/32UF,Housing Landlord Manager,Void Repairs,27/03/14,IJ00027865,289.50,Crowson & Ward Ltd, 
South Holland District Council,http://statistics.data.gov.uk/id/local-authority/32UF,Housing Landlord Manager,Furniture and Equipment,27/03/14,IJ00027865,289.50,Crowson & Ward Ltd, 
South Holland District Council,http://statistics.data.gov.uk/id/local-authority/32UF,ICT and Customer Services,Furniture and Equipment,27/03/14,IJ00028083,15318.90,Dell Computer Corporation Ltd, 
South Holland District Council,http://statistics.data.gov.uk/id/local-authority/32UF,ICT and Customer Services,Furniture and Equipment,27/03/14,IJ00027890,1451.66,Dell Computer Corporation Ltd, 
South Holland District Council,http://statistics.data.gov.uk/id/local-authority/32UF,ICT and Customer Services,Furniture and Equipment,27/03/14,IJ00027891,6171.00,Dell Computer Corporation Ltd, 
South Holland District Council,http://statistics.data.gov.uk/id/local-authority/32UF,Housing Landlord Manager,Staff Training Expenses,27/03/14,IJ00027848,650.00,Derby City Council, 
South Holland District Council,http://statistics.data.gov.uk/id/local-authority/32UF,Building Control,Professional & Contractors Fees,27/03/14,IJ00027981,1000.00,District Surveyors Association Limited, 
South Holland District Council,http://statistics.data.gov.uk/id/local-authority/32UF,Housing Landlord Manager,Buildings Maintenance - Responsive,27/03/14,IJ00028064,600.00,Elston Environmental Services, 
South Holland District Council,http://statistics.data.gov.uk/id/local-authority/32UF,Housing Landlord Manager,Gas,27/03/14,IJ00027924,964.97,Espo Gas And Electricity, 
South Holland District Council,http://statistics.data.gov.uk/id/local-authority/32UF,HR,Other Employee Expenses,27/03/14,IJ00028038,82.38,Fideliti Limited, 
South Holland District Council,http://statistics.data.gov.uk/id/local-authority/32UF,Balance Sheet,Payroll SHDC Child Care,27/03/14,IJ00028038,2059.50,Fideliti Limited, 
South Holland District Council,http://statistics.data.gov.uk/id/local-authority/32UF,Democratic Services,Other Miscellaneous Expenses,27/03/14,IJ00027818,728.00,Fleet Parish Council, 
South Holland District Council,http://statistics.data.gov.uk/id/local-authority/32UF,Capital,Works to Buildings (main Contractor),27/03/14,IJ00027978,198037.00,Foster Property Maintenance Ltd, 
South Holland District Council,http://statistics.data.gov.uk/id/local-authority/32UF,ICT and Customer Services,Computer Software Licence Costs,27/03/14,IJ00027932,24706.68,Ggp Systems Ltd, 
South Holland District Council,http://statistics.data.gov.uk/id/local-authority/32UF,Housing Landlord Manager,Buildings Maintenance - Responsive,27/03/14,IJ00027869,3000.00,G W Engineering (Lincs) Ltd, 
South Holland District Council,http://statistics.data.gov.uk/id/local-authority/32UF,Housing Landlord Manager,Materials and Consumables,27/03/14,IJ00027889,516.00,G W Engineering (Lincs) Ltd, 
South Holland District Council,http://statistics.data.gov.uk/id/local-authority/32UF,Housing Landlord Manager,Materials and Consumables,27/03/14,IJ00027889,516.00,G W Engineering (Lincs) Ltd, 
South Holland District Council,http://statistics.data.gov.uk/id/local-authority/32UF,Housing Landlord Manager,Void Decoration,27/03/14,IJ00028062,1439.01,Homebase Limited, 
South Holland District Council,http://statistics.data.gov.uk/id/local-authority/32UF,Housing Landlord Manager,Void Decoration,27/03/14,IJ00028063,957.39,Homebase Limited, 
South Holland District Council,http://statistics.data.gov.uk/id/local-authority/32UF,ICT and Customer Services,Computer Software Licence Costs,27/03/14,IJ00027956,3045.00,Ieg4 Limited, 
South Holland District Council,http://statistics.data.gov.uk/id/local-authority/32UF,Building Control,Advertising - Events,27/03/14,IJ00027823,1500.00,Insignia Ltd, 
South Holland District Council,http://statistics.data.gov.uk/id/local-authority/32UF,Housing Landlord Manager,Agency Staff,27/03/14,IJ00027864,3069.55,Integrity Plus Ltd, 
South Holland District Council,http://statistics.data.gov.uk/id/local-authority/32UF,Housing,Agency Staff,27/03/14,IJ00027864,215.04,Integrity Plus Ltd, 
South Holland District Council,http://statistics.data.gov.uk/id/local-authority/32UF,Housing Landlord Manager,Agency Staff,27/03/14,IJ00027863,2840.89,Integrity Plus Ltd, 
South Holland District Council,http://statistics.data.gov.uk/id/local-authority/32UF,Housing,Agency Staff,27/03/14,IJ00027863,215.03,Integrity Plus Ltd, 
South Holland District Council,http://statistics.data.gov.uk/id/local-authority/32UF,Environmental Services,Agency Staff,27/03/14,IJ00028004,284.78,Integrity Plus Ltd, 
South Holland District Council,http://statistics.data.gov.uk/id/local-authority/32UF,Environmental Services,Agency Staff,27/03/14,IJ00028004,73.65,Integrity Plus Ltd, 
South Holland District Council,http://statistics.data.gov.uk/id/local-authority/32UF,Environmental Services,Agency Staff,27/03/14,IJ00028004,481.18,Integrity Plus Ltd, 
South Holland District Council,http://statistics.data.gov.uk/id/local-authority/32UF,Housing Landlord Manager,Materials and Consumables,27/03/14,IJ00027995,1232.75,Jackson Building Centres Ltd, 
South Holland District Council,http://statistics.data.gov.uk/id/local-authority/32UF,Housing Landlord Manager,Materials and Consumables,27/03/14,IJ00027995,2701.70,Jackson Building Centres Ltd, 
South Holland District Council,http://statistics.data.gov.uk/id/local-authority/32UF,Housing Landlord Manager,Materials and Consumables,27/03/14,IJ00027995,1807.86,Jackson Building Centres Ltd, 
South Holland District Council,http://statistics.data.gov.uk/id/local-authority/32UF,Housing Landlord Manager,Buildings Maintenance - Responsive,27/03/14,IJ00028084,1933.64,Kls Care, 
South Holland District Council,http://statistics.data.gov.uk/id/local-authority/32UF,Capital,Works to Buildings (main Contractor),27/03/14,IJ00027993,25603.44,Langwith Builders Ltd, 
South Holland District Council,http://statistics.data.gov.uk/id/local-authority/32UF,Housing Landlord Manager,Buildings Maintenance - Responsive,27/03/14,IJ00028075,520.80,L Fragale, 
South Holland District Council,http://statistics.data.gov.uk/id/local-authority/32UF,Housing Landlord Manager,Buildings Maintenance - Responsive,27/03/14,IJ00028027,1908.00,L Fragale, 
South Holland District Council,http://statistics.data.gov.uk/id/local-authority/32UF,Democratic Services,Lincolnshire Legal Services,27/03/14,IJ00028113,122.00,Lincolnshire County Council, 
South Holland District Council,http://statistics.data.gov.uk/id/local-authority/32UF,Democratic Services,Lincolnshire Legal Services,27/03/14,IJ00028113,11761.84,Lincolnshire County Council, 
South Holland District Council,http://statistics.data.gov.uk/id/local-authority/32UF,Democratic Services,Other Miscellaneous Expenses,27/03/14,IJ00027947,1000.00,Long Sutton Market House Trust, 
South Holland District Council,http://statistics.data.gov.uk/id/local-authority/32UF,Building Control,Buildings Maintenance - Programmed,27/03/14,IJ00027998,795.70,Main Street Signs Ltd, 
South Holland District Council,http://statistics.data.gov.uk/id/local-authority/32UF,Building Control,Buildings Maintenance - Programmed,27/03/14,IJ00027999,690.20,Main Street Signs Ltd, 
South Holland District Council,http://statistics.data.gov.uk/id/local-authority/32UF,Building Control,Buildings Maintenance - Programmed,27/03/14,IJ00028000,656.90,Main Street Signs Ltd, 
South Holland District Council,http://statistics.data.gov.uk/id/local-authority/32UF,Environmental Health,Legal Fees,27/03/14,IJ00027955,2502.00,Maples Solicitors, 
South Holland District Council,http://statistics.data.gov.uk/id/local-authority/32UF,ICT and Customer Services,Computer Software Licence Costs,27/03/14,IJ00027920,38263.22,Northgate Information Solutions Uk Ltd, 
South Holland District Council,http://statistics.data.gov.uk/id/local-authority/32UF,ICT and Customer Services,Computer Software Licence Costs,27/03/14,IJ00027933,7456.49,Northgate Information Solutions Uk Ltd, 
South Holland District Council,http://statistics.data.gov.uk/id/local-authority/32UF,Housing Landlord Manager,Buildings Maintenance - Responsive,27/03/14,IJ00027790,1150.00,Obam Lift Services Ltd, 
South Holland District Council,http://statistics.data.gov.uk/id/local-authority/32UF,ICT and Customer Services,Computer Software Licence Costs,27/03/14,IJ00027931,11964.78,Ocella Ltd, 
South Holland District Council,http://statistics.data.gov.uk/id/local-authority/32UF,Building Control,Professional & Contractors Fees,27/03/14,IJ00027913,7000.00,Ocella Ltd, 
South Holland District Council,http://statistics.data.gov.uk/id/local-authority/32UF,ICT and Customer Services,Computer Software Licence Costs,27/03/14,IJ00027921,1617.43,Ocella Ltd, 
South Holland District Council,http://statistics.data.gov.uk/id/local-authority/32UF,Planning,Grants and Contributions to Outside Bodies- No Service Recei,27/03/14,IJ00027994,1000.00,Plann.It Limited, 
South Holland District Council,http://statistics.data.gov.uk/id/local-authority/32UF,Housing Landlord Manager,Materials and Consumables,27/03/14,IJ00027878,801.40,Rexel Uk Ltd, 
South Holland District Council,http://statistics.data.gov.uk/id/local-authority/32UF,Housing Landlord Manager,Materials and Consumables,27/03/14,IJ00028059,1014.88,Rexel Uk Ltd, 
South Holland District Council,http://statistics.data.gov.uk/id/local-authority/32UF,Community Development,Grants and Contributions to Outside Bodies- No Service Recei,27/03/14,IJ00027846,500.00,South Holland Concerts, 
South Holland District Council,http://statistics.data.gov.uk/id/local-authority/32UF,Environmental Services,Maintenance of Footpaths and Roadways,27/03/14,IJ00027842,1400.00,South Holland Maintenance Ltd, 
South Holland District Council,http://statistics.data.gov.uk/id/local-authority/32UF,Housing Landlord Manager,Void Repairs,27/03/14,IJ00027817,10560.00,South Holland Maintenance Ltd, 
South Holland District Council,http://statistics.data.gov.uk/id/local-authority/32UF,Housing Landlord Manager,Grounds Maintenance Contract (External),27/03/14,IJ00027792,9390.00,South Holland Maintenance Ltd, 
South Holland District Council,http://statistics.data.gov.uk/id/local-authority/32UF,Housing Landlord Manager,Grounds Maintenance Contract (External),27/03/14,IJ00027973,7020.00,South Holland Maintenance Ltd, 
South Holland District Council,http://statistics.data.gov.uk/id/local-authority/32UF,Housing Landlord Manager,Grounds Maintenance Contract (External),27/03/14,IJ00027974,1450.00,South Holland Maintenance Ltd, 
South Holland District Council,http://statistics.data.gov.uk/id/local-authority/32UF,Housing Landlord Manager,Maintenance of Footpaths and Roadways,27/03/14,IJ00027975,2048.00,South Holland Maintenance Ltd, 
South Holland District Council,http://statistics.data.gov.uk/id/local-authority/32UF,Housing,Grants and Contributions to Outside Bodies- No Service Recei,27/03/14,IJ00028095,6538.33,South Kesteven District Council, 
South Holland District Council,http://statistics.data.gov.uk/id/local-authority/32UF,Community Development,Payments to Bodies in Respect of Income Collected,27/03/14,IJ00028085,1394.00,St Nicholas Players, 
South Holland District Council,http://statistics.data.gov.uk/id/local-authority/32UF,Community Development,Commission,27/03/14,IJ00028085,-116.17,St Nicholas Players, 
South Holland District Council,http://statistics.data.gov.uk/id/local-authority/32UF,Capital,Works to Buildings (main Contractor),27/03/14,IJ00027976,7215.00,The Keepmoat Grp t a The Apollo Grp, 
South Holland District Council,http://statistics.data.gov.uk/id/local-authority/32UF,Capital,Works to Buildings (main Contractor),27/03/14,IJ00027977,17958.00,The Keepmoat Grp t a The Apollo Grp, 
South Holland District Council,http://statistics.data.gov.uk/id/local-authority/32UF,Community Development,Other Miscellaneous Expenses,27/03/14,IJ00027853,6750.00,T M Vowels-Lewis, 
South Holland District Council,http://statistics.data.gov.uk/id/local-authority/32UF,Community Development,Other Miscellaneous Expenses,27/03/14,IJ00027951,6750.00,T M Vowels-Lewis, 
South Holland District Council,http://statistics.data.gov.uk/id/local-authority/32UF,ICT and Customer Services,Computer Software Licence Costs,27/03/14,IJ00028097,30375.46,Trustmarque Solutions Ltd, 
South Holland District Council,http://statistics.data.gov.uk/id/local-authority/32UF,Democratic Services,Other Miscellaneous Expenses,27/03/14,IJ00027805,1000.00,Tulip Radio Ltd, 
South Holland District Council,http://statistics.data.gov.uk/id/local-authority/32UF,Environmental Services,Buildings Maintenance - Programmed,27/03/14,IJ00027788,2222.50,Tyrrell Contractors Ltd, 
South Holland District Council,http://statistics.data.gov.uk/id/local-authority/32UF,Finance,Fees and Charges General,27/03/14,IJ00028035,-32.92,UNISON, 
South Holland District Council,http://statistics.data.gov.uk/id/local-authority/32UF,Balance Sheet,Payroll-Unison,27/03/14,IJ00028035,1316.90,UNISON, 
South Holland District Council,http://statistics.data.gov.uk/id/local-authority/32UF,Planning,Professional & Contractors Fees,27/03/14,IJ00028102,2500.00,Valuation Office Agency, 
South Holland District Council,http://statistics.data.gov.uk/id/local-authority/32UF,Housing Landlord Manager,Other Communication Costs,27/03/14,IJ00028087,30.42,Vodafone Ltd, 
South Holland District Council,http://statistics.data.gov.uk/id/local-authority/32UF,Planning,Telephones,27/03/14,IJ00028087,65.47,Vodafone Ltd, 
South Holland District Council,http://statistics.data.gov.uk/id/local-authority/32UF,Housing Landlord Manager,Telephones,27/03/14,IJ00028087,1284.88,Vodafone Ltd, 
South Holland District Council,http://statistics.data.gov.uk/id/local-authority/32UF,Building Control,Telephones,27/03/14,IJ00028087,16.26,Vodafone Ltd, 
South Holland District Council,http://statistics.data.gov.uk/id/local-authority/32UF,Finance,Telephones,27/03/14,IJ00028087,8.43,Vodafone Ltd, 
South Holland District Council,http://statistics.data.gov.uk/id/local-authority/32UF,Democratic Services,Telephones,27/03/14,IJ00028087,8.43,Vodafone Ltd, 
South Holland District Council,http://statistics.data.gov.uk/id/local-authority/32UF,Democratic Services,Telephones,27/03/14,IJ00028087,110.99,Vodafone Ltd, 
South Holland District Council,http://statistics.data.gov.uk/id/local-authority/32UF,Democratic Services,Telephones,27/03/14,IJ00028087,8.43,Vodafone Ltd, 
South Holland District Council,http://statistics.data.gov.uk/id/local-authority/32UF,Asset and Property,Telephones,27/03/14,IJ00028087,177.48,Vodafone Ltd, 
South Holland District Council,http://statistics.data.gov.uk/id/local-authority/32UF,ICT and Customer Services,Telephones,27/03/14,IJ00028087,143.43,Vodafone Ltd, 
South Holland District Council,http://statistics.data.gov.uk/id/local-authority/32UF,Revs and Bens,Telephones,27/03/14,IJ00028087,8.43,Vodafone Ltd, 
South Holland District Council,http://statistics.data.gov.uk/id/local-authority/32UF,Revs and Bens,Telephones,27/03/14,IJ00028087,16.96,Vodafone Ltd, 
South Holland District Council,http://statistics.data.gov.uk/id/local-authority/32UF,Revs and Bens,Telephones,27/03/14,IJ00028087,8.43,Vodafone Ltd, 
South Holland District Council,http://statistics.data.gov.uk/id/local-authority/32UF,Planning,Telephones,27/03/14,IJ00028087,33.72,Vodafone Ltd, 
South Holland District Council,http://statistics.data.gov.uk/id/local-authority/32UF,Planning,Telephones,27/03/14,IJ00028087,8.43,Vodafone Ltd, 
South Holland District Council,http://statistics.data.gov.uk/id/local-authority/32UF,Planning,Telephones,27/03/14,IJ00028087,8.43,Vodafone Ltd, 
South Holland District Council,http://statistics.data.gov.uk/id/local-authority/32UF,Planning,Telephones,27/03/14,IJ00028087,33.63,Vodafone Ltd, 
South Holland District Council,http://statistics.data.gov.uk/id/local-authority/32UF,Building Control,Telephones,27/03/14,IJ00028087,259.00,Vodafone Ltd, 
South Holland District Council,http://statistics.data.gov.uk/id/local-authority/32UF,Environmental Services,Telephones,27/03/14,IJ00028087,331.04,Vodafone Ltd, 
South Holland District Council,http://statistics.data.gov.uk/id/local-authority/32UF,Environmental Services,Telephones,27/03/14,IJ00028087,20.82,Vodafone Ltd, 
South Holland District Council,http://statistics.data.gov.uk/id/local-authority/32UF,Community Development,Telephones,27/03/14,IJ00028087,23.43,Vodafone Ltd, 
South Holland District Council,http://statistics.data.gov.uk/id/local-authority/32UF,Community Development,Telephones,27/03/14,IJ00028087,47.56,Vodafone Ltd, 
South Holland District Council,http://statistics.data.gov.uk/id/local-authority/32UF,Environmental Services,Telephones,27/03/14,IJ00028087,18.23,Vodafone Ltd, 
South Holland District Council,http://statistics.data.gov.uk/id/local-authority/32UF,Environmental Services,Telephones,27/03/14,IJ00028087,149.46,Vodafone Ltd, 
South Holland District Council,http://statistics.data.gov.uk/id/local-authority/32UF,Housing Landlord Manager,Telephones,27/03/14,IJ00028087,583.97,Vodafone Ltd, 
South Holland District Council,http://statistics.data.gov.uk/id/local-authority/32UF,Housing,Telephones,27/03/14,IJ00028087,27.28,Vodafone Ltd, 
South Holland District Council,http://statistics.data.gov.uk/id/local-authority/32UF,Housing,Telephones,27/03/14,IJ00028087,143.51,Vodafone Ltd, 
South Holland District Council,http://statistics.data.gov.uk/id/local-authority/32UF,Housing,Telephones,27/03/14,IJ00028087,46.36,Vodafone Ltd, 
South Holland District Council,http://statistics.data.gov.uk/id/local-authority/32UF,Housing Landlord Manager,Telephones,27/03/14,IJ00028087,645.79,Vodafone Ltd, 
South Holland District Council,http://statistics.data.gov.uk/id/local-authority/32UF,Housing Landlord Manager,Telephones,27/03/14,IJ00028087,244.73,Vodafone Ltd, 
South Holland District Council,http://statistics.data.gov.uk/id/local-authority/32UF,Environmental Services,Telephones,27/03/14,IJ00028087,82.27,Vodafone Ltd, 
South Holland District Council,http://statistics.data.gov.uk/id/local-authority/32UF,Environmental Services,Telephones,27/03/14,IJ00028087,234.13,Vodafone Ltd, 
South Holland District Council,http://statistics.data.gov.uk/id/local-authority/32UF,Environmental Services,Telephones,27/03/14,IJ00028087,167.46,Vodafone Ltd, 
South Holland District Council,http://statistics.data.gov.uk/id/local-authority/32UF,Environmental Services,Telephones,27/03/14,IJ00028087,25.29,Vodafone Ltd, 
South Holland District Council,http://statistics.data.gov.uk/id/local-authority/32UF,Environmental Health,Telephones,27/03/14,IJ00028087,168.58,Vodafone Ltd, 
South Holland District Council,http://statistics.data.gov.uk/id/local-authority/32UF,Environmental Health,Telephones,27/03/14,IJ00028087,143.19,Vodafone Ltd, 
South Holland District Council,http://statistics.data.gov.uk/id/local-authority/32UF,Environmental Health,Telephones,27/03/14,IJ00028087,8.43,Vodafone Ltd, 
South Holland District Council,http://statistics.data.gov.uk/id/local-authority/32UF,Environmental Health,Telephones,27/03/14,IJ00028087,38.55,Vodafone Ltd, 
South Holland District Council,http://statistics.data.gov.uk/id/local-authority/32UF,Community Development,Telephones,27/03/14,IJ00028087,43.78,Vodafone Ltd, 
South Holland District Council,http://statistics.data.gov.uk/id/local-authority/32UF,Democratic Services,Telephones,27/03/14,IJ00028087,8.70,Vodafone Ltd, 
South Holland District Council,http://statistics.data.gov.uk/id/local-authority/32UF,Community Development,Telephones,27/03/14,IJ00028087,42.50,Vodafone Ltd, 
South Holland District Council,http://statistics.data.gov.uk/id/local-authority/32UF,Community Development,Telephones,27/03/14,IJ00028087,36.12,Vodafone Ltd, 
South Holland District Council,http://statistics.data.gov.uk/id/local-authority/32UF,Economic Development,Telephones,27/03/14,IJ00028087,77.54,Vodafone Ltd, 
South Holland District Council,http://statistics.data.gov.uk/id/local-authority/32UF,Economic Development,Telephones,27/03/14,IJ00028087,16.86,Vodafone Ltd, 
South Holland District Council,http://statistics.data.gov.uk/id/local-authority/32UF,Housing Landlord Manager,Telephones,27/03/14,IJ00028087,104.81,Vodafone Ltd, 
South Holland District Council,http://statistics.data.gov.uk/id/local-authority/32UF,Housing Landlord Manager,Telephones,27/03/14,IJ00028087,297.43,Vodafone Ltd, 
South Holland District Council,http://statistics.data.gov.uk/id/local-authority/32UF,Environmental Health,Telephones,27/03/14,IJ00028087,48.29,Vodafone Ltd, 
South Holland District Council,http://statistics.data.gov.uk/id/local-authority/32UF,Housing Landlord Manager,Telephones,27/03/14,IJ00028087,8.43,Vodafone Ltd, 
South Holland District Council,http://statistics.data.gov.uk/id/local-authority/32UF,Housing Landlord Manager,Telephones,27/03/14,IJ00028087,1395.01,Vodafone Ltd, 
South Holland District Council,http://statistics.data.gov.uk/id/local-authority/32UF,Community Development,Telephones,27/03/14,IJ00028087,16.86,Vodafone Ltd, 
South Holland District Council,http://statistics.data.gov.uk/id/local-authority/32UF,Finance,Telephones,27/03/14,IJ00028087,87.18,Vodafone Ltd, 
South Holland District Council,http://statistics.data.gov.uk/id/local-authority/32UF,Environmental Services,Other Communication Costs,27/03/14,IJ00028087,16.98,Vodafone Ltd, 
South Holland District Council,http://statistics.data.gov.uk/id/local-authority/32UF,Community Development,Telephones,27/03/14,IJ00028087,33.18,Vodafone Ltd, 
South Holland District Council,http://statistics.data.gov.uk/id/local-authority/32UF,Community Development,Telephones,27/03/14,IJ00028087,92.01,Vodafone Ltd, 
South Holland District Council,http://statistics.data.gov.uk/id/local-authority/32UF,Community Development,Telephones,27/03/14,IJ00028087,31.86,Vodafone Ltd, 
South Holland District Council,http://statistics.data.gov.uk/id/local-authority/32UF,Community Development,Telephones,27/03/14,IJ00028087,41.43,Vodafone Ltd, 
South Holland District Council,http://statistics.data.gov.uk/id/local-authority/32UF,Economic Development,Telephones,27/03/14,IJ00028087,63.58,Vodafone Ltd, 
South Holland District Council,http://statistics.data.gov.uk/id/local-authority/32UF,Housing Landlord Manager,Telephones,27/03/14,IJ00028087,38.31,Vodafone Ltd, 
South Holland District Council,http://statistics.data.gov.uk/id/local-authority/32UF,Finance,Professional & Contractors Fees,27/03/14,IJ00028093,587.50,Wilks Head & Eve, 
South Holland District Council,http://statistics.data.gov.uk/id/local-authority/32UF,Finance,Professional & Contractors Fees,27/03/14,IJ00028094,1733.75,Wilks Head & Eve, 
South Holland District Council,http://statistics.data.gov.uk/id/local-authority/32UF,Housing Landlord Manager,Void Repairs,27/03/14,IJ00027812,1100.00,Spotless Cleaning, 
South Holland District Council,http://statistics.data.gov.uk/id/local-authority/32UF,Housing Landlord Manager,Void Repairs,27/03/14,IJ00027820,1110.00,Spotless Cleaning, 
South Holland District Council,http://statistics.data.gov.uk/id/local-authority/32UF,ICT and Customer Services,Professional & Contractors Fees,27/03/14,IJ00027859,5213.30,VTEQ Ltd, 
South Holland District Council,http://statistics.data.gov.uk/id/local-authority/32UF,Finance,Banking Charges,27/03/14,IJ00028114,2136.22,Lloyds TSB, 
South Holland District Council,http://statistics.data.gov.uk/id/local-authority/32UF,Democratic Services,Other Miscellaneous Expenses,27/03/14,IJ00028009,10.99,DAISY COMMUNICATIONS LTD, 
South Holland District Council,http://statistics.data.gov.uk/id/local-authority/32UF,Environmental Health,Stationery,27/03/14,IJ00028009,10.99,DAISY COMMUNICATIONS LTD, 
South Holland District Council,http://statistics.data.gov.uk/id/local-authority/32UF,Planning,Telephones,27/03/14,IJ00028009,5.49,DAISY COMMUNICATIONS LTD, 
South Holland District Council,http://statistics.data.gov.uk/id/local-authority/32UF,Housing Landlord Manager,Telephones,27/03/14,IJ00028009,773.42,DAISY COMMUNICATIONS LTD, 
South Holland District Council,http://statistics.data.gov.uk/id/local-authority/32UF,Housing Landlord Manager,Telephones,27/03/14,IJ00028009,142.87,DAISY COMMUNICATIONS LTD, 
South Holland District Council,http://statistics.data.gov.uk/id/local-authority/32UF,Finance,Telephones,27/03/14,IJ00028009,908.11,DAISY COMMUNICATIONS LTD, 
South Holland District Council,http://statistics.data.gov.uk/id/local-authority/32UF,Asset and Property,Buildings Maintenance - Responsive,27/03/14,IJ00028009,10.99,DAISY COMMUNICATIONS LTD, 
South Holland District Council,http://statistics.data.gov.uk/id/local-authority/32UF,Environmental Health,Telephones,27/03/14,IJ00028009,10.99,DAISY COMMUNICATIONS LTD, 
South Holland District Council,http://statistics.data.gov.uk/id/local-authority/32UF,Asset and Property,Telephones,27/03/14,IJ00028009,10.99,DAISY COMMUNICATIONS LTD, 
South Holland District Council,http://statistics.data.gov.uk/id/local-authority/32UF,Asset and Property,Telephones,27/03/14,IJ00028009,10.99,DAISY COMMUNICATIONS LTD, 
South Holland District Council,http://statistics.data.gov.uk/id/local-authority/32UF,Building Control,Telephones,27/03/14,IJ00028009,5.49,DAISY COMMUNICATIONS LTD, 
South Holland District Council,http://statistics.data.gov.uk/id/local-authority/32UF,Environmental Services,Telephones,27/03/14,IJ00028009,10.99,DAISY COMMUNICATIONS LTD, 
South Holland District Council,http://statistics.data.gov.uk/id/local-authority/32UF,Housing Landlord Manager,Telephones,27/03/14,IJ00028009,11.06,DAISY COMMUNICATIONS LTD, 
South Holland District Council,http://statistics.data.gov.uk/id/local-authority/32UF,Environmental Services,Telephones,27/03/14,IJ00028009,11.22,DAISY COMMUNICATIONS LTD, 
South Holland District Council,http://statistics.data.gov.uk/id/local-authority/32UF,Environmental Services,Telephones,27/03/14,IJ00028009,11.13,DAISY COMMUNICATIONS LTD, 
South Holland District Council,http://statistics.data.gov.uk/id/local-authority/32UF,Housing Landlord Manager,Telephones,27/03/14,IJ00028009,10.99,DAISY COMMUNICATIONS LTD, 
South Holland District Council,http://statistics.data.gov.uk/id/local-authority/32UF,Housing Landlord Manager,Telephones,27/03/14,IJ00028009,19.47,DAISY COMMUNICATIONS LTD, 
South Holland District Council,http://statistics.data.gov.uk/id/local-authority/32UF,Finance,Telephones,27/03/14,IJ00028009,10.99,DAISY COMMUNICATIONS LTD, 
South Holland District Council,http://statistics.data.gov.uk/id/local-authority/32UF,Finance,Telephones,27/03/14,IJ00028009,21.98,DAISY COMMUNICATIONS LTD, 
South Holland District Council,http://statistics.data.gov.uk/id/local-authority/32UF,Finance,Telephones,27/03/14,IJ00028009,248.67,DAISY COMMUNICATIONS LTD, 
South Holland District Council,http://statistics.data.gov.uk/id/local-authority/32UF,Finance,Telephones,27/03/14,IJ00028009,10.99,DAISY COMMUNICATIONS LTD, 
South Holland District Council,http://statistics.data.gov.uk/id/local-authority/32UF,Community Development,Telephones,27/03/14,IJ00028009,44.27,DAISY COMMUNICATIONS LTD, 
South Holland District Council,http://statistics.data.gov.uk/id/local-authority/32UF,Community Development,Telephones,27/03/14,IJ00028009,22.11,DAISY COMMUNICATIONS LTD, 
South Holland District Council,http://statistics.data.gov.uk/id/local-authority/32UF,Community Development,Postages,27/03/14,IJ00028009,10.99,DAISY COMMUNICATIONS LTD, 
South Holland District Council,http://statistics.data.gov.uk/id/local-authority/32UF,Democratic Services,Other Miscellaneous Expenses,27/03/14,IJ00028016,10.99,DAISY COMMUNICATIONS LTD, 
South Holland District Council,http://statistics.data.gov.uk/id/local-authority/32UF,Environmental Health,Stationery,27/03/14,IJ00028016,10.99,DAISY COMMUNICATIONS LTD, 
South Holland District Council,http://statistics.data.gov.uk/id/local-authority/32UF,Planning,Telephones,27/03/14,IJ00028016,5.50,DAISY COMMUNICATIONS LTD, 
South Holland District Council,http://statistics.data.gov.uk/id/local-authority/32UF,Housing Landlord Manager,Internet Broadband Payments,27/03/14,IJ00028016,142.87,DAISY COMMUNICATIONS LTD, 
South Holland District Council,http://statistics.data.gov.uk/id/local-authority/32UF,Housing Landlord Manager,Telephones,27/03/14,IJ00028016,773.81,DAISY COMMUNICATIONS LTD, 
South Holland District Council,http://statistics.data.gov.uk/id/local-authority/32UF,Finance,Telephones,27/03/14,IJ00028016,802.06,DAISY COMMUNICATIONS LTD, 
South Holland District Council,http://statistics.data.gov.uk/id/local-authority/32UF,Asset and Property,Buildings Maintenance - Responsive,27/03/14,IJ00028016,10.99,DAISY COMMUNICATIONS LTD, 
South Holland District Council,http://statistics.data.gov.uk/id/local-authority/32UF,Environmental Health,Telephones,27/03/14,IJ00028016,10.99,DAISY COMMUNICATIONS LTD, 
South Holland District Council,http://statistics.data.gov.uk/id/local-authority/32UF,Asset and Property,Telephones,27/03/14,IJ00028016,10.99,DAISY COMMUNICATIONS LTD, 
South Holland District Council,http://statistics.data.gov.uk/id/local-authority/32UF,Asset and Property,Telephones,27/03/14,IJ00028016,10.99,DAISY COMMUNICATIONS LTD, 
South Holland District Council,http://statistics.data.gov.uk/id/local-authority/32UF,Building Control,Telephones,27/03/14,IJ00028016,5.50,DAISY COMMUNICATIONS LTD, 
South Holland District Council,http://statistics.data.gov.uk/id/local-authority/32UF,Environmental Services,Telephones,27/03/14,IJ00028016,10.99,DAISY COMMUNICATIONS LTD, 
South Holland District Council,http://statistics.data.gov.uk/id/local-authority/32UF,Housing Landlord Manager,Telephones,27/03/14,IJ00028016,11.14,DAISY COMMUNICATIONS LTD, 
South Holland District Council,http://statistics.data.gov.uk/id/local-authority/32UF,Environmental Services,Telephones,27/03/14,IJ00028016,11.01,DAISY COMMUNICATIONS LTD, 
South Holland District Council,http://statistics.data.gov.uk/id/local-authority/32UF,Environmental Services,Telephones,27/03/14,IJ00028016,11.13,DAISY COMMUNICATIONS LTD, 
South Holland District Council,http://statistics.data.gov.uk/id/local-authority/32UF,Housing Landlord Manager,Telephones,27/03/14,IJ00028016,11.00,DAISY COMMUNICATIONS LTD, 
South Holland District Council,http://statistics.data.gov.uk/id/local-authority/32UF,Housing Landlord Manager,Telephones,27/03/14,IJ00028016,18.19,DAISY COMMUNICATIONS LTD, 
South Holland District Council,http://statistics.data.gov.uk/id/local-authority/32UF,Finance,Telephones,27/03/14,IJ00028016,10.99,DAISY COMMUNICATIONS LTD, 
South Holland District Council,http://statistics.data.gov.uk/id/local-authority/32UF,Finance,Telephones,27/03/14,IJ00028016,22.01,DAISY COMMUNICATIONS LTD, 
South Holland District Council,http://statistics.data.gov.uk/id/local-authority/32UF,Finance,Telephones,27/03/14,IJ00028016,10.99,DAISY COMMUNICATIONS LTD, 
South Holland District Council,http://statistics.data.gov.uk/id/local-authority/32UF,Finance,Other Communication Costs,27/03/14,IJ00028016,286.23,DAISY COMMUNICATIONS LTD, 
South Holland District Council,http://statistics.data.gov.uk/id/local-authority/32UF,Community Development,Telephones,27/03/14,IJ00028016,45.06,DAISY COMMUNICATIONS LTD, 
South Holland District Council,http://statistics.data.gov.uk/id/local-authority/32UF,Community Development,Telephones,27/03/14,IJ00028016,22.12,DAISY COMMUNICATIONS LTD, 
South Holland District Council,http://statistics.data.gov.uk/id/local-authority/32UF,Community Development,Postages,27/03/14,IJ00028016,10.99,DAISY COMMUNICATIONS LTD, 
South Holland District Council,http://statistics.data.gov.uk/id/local-authority/32UF,Democratic Services,Other Miscellaneous Expenses,27/03/14,IJ00028017,10.99,DAISY COMMUNICATIONS LTD, 
South Holland District Council,http://statistics.data.gov.uk/id/local-authority/32UF,Environmental Health,Stationery,27/03/14,IJ00028017,10.99,DAISY COMMUNICATIONS LTD, 
South Holland District Council,http://statistics.data.gov.uk/id/local-authority/32UF,Planning,Telephones,27/03/14,IJ00028017,5.49,DAISY COMMUNICATIONS LTD, 
South Holland District Council,http://statistics.data.gov.uk/id/local-authority/32UF,Housing Landlord Manager,Internet Broadband Payments,27/03/14,IJ00028017,142.88,DAISY COMMUNICATIONS LTD, 
South Holland District Council,http://statistics.data.gov.uk/id/local-authority/32UF,Housing Landlord Manager,Telephones,27/03/14,IJ00028017,786.83,DAISY COMMUNICATIONS LTD, 
South Holland District Council,http://statistics.data.gov.uk/id/local-authority/32UF,Finance,Telephones,27/03/14,IJ00028017,939.62,DAISY COMMUNICATIONS LTD, 
South Holland District Council,http://statistics.data.gov.uk/id/local-authority/32UF,Asset and Property,Buildings Maintenance - Responsive,27/03/14,IJ00028017,10.99,DAISY COMMUNICATIONS LTD, 
South Holland District Council,http://statistics.data.gov.uk/id/local-authority/32UF,Environmental Health,Telephones,27/03/14,IJ00028017,10.99,DAISY COMMUNICATIONS LTD, 
South Holland District Council,http://statistics.data.gov.uk/id/local-authority/32UF,Asset and Property,Telephones,27/03/14,IJ00028017,14.15,DAISY COMMUNICATIONS LTD, 
South Holland District Council,http://statistics.data.gov.uk/id/local-authority/32UF,Asset and Property,Telephones,27/03/14,IJ00028017,10.99,DAISY COMMUNICATIONS LTD, 
South Holland District Council,http://statistics.data.gov.uk/id/local-authority/32UF,Building Control,Telephones,27/03/14,IJ00028017,5.50,DAISY COMMUNICATIONS LTD, 
South Holland District Council,http://statistics.data.gov.uk/id/local-authority/32UF,Environmental Services,Telephones,27/03/14,IJ00028017,10.99,DAISY COMMUNICATIONS LTD, 
South Holland District Council,http://statistics.data.gov.uk/id/local-authority/32UF,Housing Landlord Manager,Telephones,27/03/14,IJ00028017,11.20,DAISY COMMUNICATIONS LTD, 
South Holland District Council,http://statistics.data.gov.uk/id/local-authority/32UF,Environmental Services,Telephones,27/03/14,IJ00028017,11.40,DAISY COMMUNICATIONS LTD, 
South Holland District Council,http://statistics.data.gov.uk/id/local-authority/32UF,Environmental Services,Telephones,27/03/14,IJ00028017,11.09,DAISY COMMUNICATIONS LTD, 
South Holland District Council,http://statistics.data.gov.uk/id/local-authority/32UF,Housing Landlord Manager,Telephones,27/03/14,IJ00028017,10.99,DAISY COMMUNICATIONS LTD, 
South Holland District Council,http://statistics.data.gov.uk/id/local-authority/32UF,Housing Landlord Manager,Telephones,27/03/14,IJ00028017,19.27,DAISY COMMUNICATIONS LTD, 
South Holland District Council,http://statistics.data.gov.uk/id/local-authority/32UF,Finance,Telephones,27/03/14,IJ00028017,11.00,DAISY COMMUNICATIONS LTD, 
South Holland District Council,http://statistics.data.gov.uk/id/local-authority/32UF,Finance,Telephones,27/03/14,IJ00028017,21.99,DAISY COMMUNICATIONS LTD, 
South Holland District Council,http://statistics.data.gov.uk/id/local-authority/32UF,Finance,Telephones,27/03/14,IJ00028017,301.63,DAISY COMMUNICATIONS LTD, 
South Holland District Council,http://statistics.data.gov.uk/id/local-authority/32UF,Finance,Telephones,27/03/14,IJ00028017,10.99,DAISY COMMUNICATIONS LTD, 
South Holland District Council,http://statistics.data.gov.uk/id/local-authority/32UF,Community Development,Telephones,27/03/14,IJ00028017,44.80,DAISY COMMUNICATIONS LTD, 
South Holland District Council,http://statistics.data.gov.uk/id/local-authority/32UF,Community Development,Telephones,27/03/14,IJ00028017,22.96,DAISY COMMUNICATIONS LTD, 
South Holland District Council,http://statistics.data.gov.uk/id/local-authority/32UF,Community Development,Postages,27/03/14,IJ00028017,10.99,DAISY COMMUNICATIONS LTD, 
South Holland District Council,http://statistics.data.gov.uk/id/local-authority/32UF,Housing Landlord Manager,Buildings Maintenance - Responsive,27/03/14,IJ00028047,1385.00,B J ROOFING, 
South Holland District Council,http://statistics.data.gov.uk/id/local-authority/32UF,Housing Landlord Manager,Void Repairs,27/03/14,IJ00028049,135.00,B J ROOFING, 
South Holland District Council,http://statistics.data.gov.uk/id/local-authority/32UF,Housing Landlord Manager,Buildings Maintenance - Responsive,27/03/14,IJ00028049,1095.00,B J ROOFING, 
South Holland District Council,http://statistics.data.gov.uk/id/local-authority/32UF,Housing Landlord Manager,Buildings Maintenance - Responsive,27/03/14,IJ00028050,2600.00,B J ROOFING, 
South Holland District Council,http://statistics.data.gov.uk/id/local-authority/32UF,Housing Landlord Manager,Buildings Maintenance - Responsive,27/03/14,IJ00028051,1575.00,B J ROOFING, 
South Holland District Council,http://statistics.data.gov.uk/id/local-authority/32UF,Housing Landlord Manager,Buildings Maintenance - Responsive,27/03/14,IJ00028052,1215.00,B J ROOFING, 
South Holland District Council,http://statistics.data.gov.uk/id/local-authority/32UF,Housing Landlord Manager,Buildings Maintenance - Responsive,27/03/14,IJ00028054,1705.00,B J ROOFING, 
South Holland District Council,http://statistics.data.gov.uk/id/local-authority/32UF,Capital,Works to Buildings (main Contractor),27/03/14,IJ00027854,2349.00,E.on Sustainable Energy, 
South Holland District Council,http://statistics.data.gov.uk/id/local-authority/32UF,Asset and Property,Furniture and Equipment,27/03/14,IJ00027849,1398.00,E.on Sustainable Energy, 
South Holland District Council,http://statistics.data.gov.uk/id/local-authority/32UF,Housing Landlord Manager,Furniture and Equipment,27/03/14,IJ00027879,293.00,VEOLIA ES UK LTD, 
South Holland District Council,http://statistics.data.gov.uk/id/local-authority/32UF,Housing Landlord Manager,Furniture and Equipment,27/03/14,IJ00027879,293.00,VEOLIA ES UK LTD, 
South Holland District Council,http://statistics.data.gov.uk/id/local-authority/32UF,Housing Landlord Manager,Computer Software Purchase,27/03/14,IJ00027656,4723.56,INFRASYS LTD, 
South Holland District Council,http://statistics.data.gov.uk/id/local-authority/32UF,ICT and Customer Services,Furniture and Equipment,27/03/14,IJ00027657,774.40,INFRASYS LTD, 
South Holland District Council,http://statistics.data.gov.uk/id/local-authority/32UF,ICT and Customer Services,Professional & Contractors Fees,27/03/14,IJ00027658,750.00,INFRASYS LTD, 
South Holland District Council,http://statistics.data.gov.uk/id/local-authority/32UF,Housing Landlord Manager,Computer Software Purchase,27/03/14,IJ00027659,4631.78,INFRASYS LTD, 
South Holland District Council,http://statistics.data.gov.uk/id/local-authority/32UF,ICT and Customer Services,Computer Software Licence Costs,27/03/14,IJ00027858,1702.50,INFRASYS LTD, 
South Holland District Council,http://statistics.data.gov.uk/id/local-authority/32UF,Community Development,Grants and Contributions- Where a Service is Received,27/03/14,IJ00028086,1350.00,Cook Connect Ltd, 
South Holland District Council,http://statistics.data.gov.uk/id/local-authority/32UF,Community Development,Grants and Contributions- Where a Service is Received,27/03/14,IJ00028088,1350.00,Cook Connect Ltd, 
South Holland District Council,http://statistics.data.gov.uk/id/local-authority/32UF,Community Development,Grants and Contributions- Where a Service is Received,27/03/14,IJ00028090,1350.00,Cook Connect Ltd, 
South Holland District Council,http://statistics.data.gov.uk/id/local-authority/32UF,Community Development,Grants and Contributions- Where a Service is Received,27/03/14,IJ00028096,1350.00,Cook Connect Ltd, 
South Holland District Council,http://statistics.data.gov.uk/id/local-authority/32UF,Housing Landlord Manager,Furniture and Equipment,27/03/14,IJ00027900,1983.60,Barclays Asset and Sales Financing, 
South Holland District Council,http://statistics.data.gov.uk/id/local-authority/32UF,Democratic Services,Other Miscellaneous Expenses,27/03/14,IJ00027816,1500.00,Fleet Baptist Church, 
South Holland District Council,http://statistics.data.gov.uk/id/local-authority/32UF,Capital,Works to Buildings (main Contractor),27/03/14,IJ00027944,1988.75,1st Choice Insulations Ltd, 
South Holland District Council,http://statistics.data.gov.uk/id/local-authority/32UF,Capital,Works to Buildings (main Contractor),27/03/14,IJ00027922,1605.70,1st Choice Insulations Ltd, 
South Holland District Council,http://statistics.data.gov.uk/id/local-authority/32UF,Environmental Health,Professional & Contractors Fees,27/03/14,IJ00027915,937.50,Kingsley Hamilton, 
South Holland District Council,http://statistics.data.gov.uk/id/local-authority/32UF,Housing Landlord Manager,Buildings Maintenance - Responsive,27/03/14,IJ00028069,975.00,Justin Doughty, 
South Holland District Council,http://statistics.data.gov.uk/id/local-authority/32UF,Community Development,Other Miscellaneous Expenses,27/03/14,IJ00027892,52411.35,Leisure in the Community, 
South Holland District Council,http://statistics.data.gov.uk/id/local-authority/32UF,Community Development,Other Miscellaneous Expenses,27/03/14,IJ00028040,7346.65,Leisure in the Community, 
South Holland District Council,http://statistics.data.gov.uk/id/local-authority/32UF,Capital,Works to Buildings (main Contractor),27/03/14,IJ00027980,1350.00,MCP Environmental, 
South Holland District Council,http://statistics.data.gov.uk/id/local-authority/32UF,Capital,Works to Buildings (main Contractor),27/03/14,IJ00027987,98592.00,Willmott Dixon Partnerships Ltd, 
South Holland District Council,http://statistics.data.gov.uk/id/local-authority/32UF,Democratic Services,Other Miscellaneous Expenses,27/03/14,IJ00027843,1150.00,Fleet Wood Lane Primary School, 
South Holland District Council,http://statistics.data.gov.uk/id/local-authority/32UF,Environmental Services,Other Communication Costs,27/03/14,IJ00027852,566.00,Argon Promotions, 
South Holland District Council,http://statistics.data.gov.uk/id/local-authority/32UF,Housing,Grants and Contributions to Outside Bodies- No Service Recei,27/03/14,IJ00027959,1750.00,REDACTED PERSONAL INFORMATION,REDACTED
South Holland District Council,http://statistics.data.gov.uk/id/local-authority/32UF,Housing Landlord Manager,Damp Proofing,27/03/14,IJ00028041,2234.34,Bersche - Rolt Ltd, 
South Holland District Council,http://statistics.data.gov.uk/id/local-authority/32UF,Community Development,Film and Entertainment Costs,27/03/14,IJ00027960,558.33,Arts Alliance Media, 
South Holland District Council,http://statistics.data.gov.uk/id/local-authority/32UF,Housing Landlord Manager,Grants and Contributions to Outside Bodies- No Service Recei,27/03/14,IJ00027965,6642.86,Broadland Meridian, 
South Holland District Council,http://statistics.data.gov.uk/id/local-authority/32UF,Housing Landlord Manager,Grants and Contributions to Outside Bodies- No Service Recei,27/03/14,IJ00027966,13285.72,Broadland Meridian, 
South Holland District Council,http://statistics.data.gov.uk/id/local-authority/32UF,Housing Landlord Manager,Grants and Contributions to Outside Bodies- No Service Recei,27/03/14,IJ00027967,6642.86,Broadland Meridian, 
South Holland District Council,http://statistics.data.gov.uk/id/local-authority/32UF,Housing Landlord Manager,Grants and Contributions to Outside Bodies- No Service Recei,27/03/14,IJ00027968,6642.86,Broadland Meridian, 
South Holland District Council,http://statistics.data.gov.uk/id/local-authority/32UF,Housing Landlord Manager,Grants and Contributions to Outside Bodies- No Service Recei,27/03/14,IJ00027969,1107.14,Broadland Meridian, 
